Workbook

Sheet Values
E2: =Working!AB1 -> PROBLEM SOLVING
C3: INSTRUCTIONS
B5: Step 1 | C5: Select the type of problem, as listed below.
B14: Step 2 | C14: Numerator type
C15: Determine the numerator and denominator the sheet uses for the fractions.
C16: Click 1: | D16: for numerator 1 | F16: & denominator 2, 3, 4, 5 and 10;
C17: Click 2: | D17: for numerator 1 | F17: & denominator 2, 3, 4, 5, 8 and 10;
C18: Click 3: | D18: for any.
B22: Step 3 | C22: Click on WorkSheet tab below. | K22: PRESS F9 for NEW WorkSheet
B24: Note | C24: If you hold down shift then click on the WorkSheet tab and the Answers tab, you will be able to print both the WorkSheet and the solutions.

Sheet WorkSheet
A1: =OFFSET(Working!D1,0,6*Working!C3) -> ADDITION PROBLEMS
A3: Evaluate the following | C3: =CONCATENATE("WorkSheet ",Working!I1,Working!H1) -> WorkSheet APL-593
A5: =Working!B4 -> 1) | B5: =CONCATENATE(OFFSET(Working!D4,0,6*Working!C4+1),OFFSET(Working!D4,0,6*Working!C4+2),OFFSET(Working!D4,0,6*Working!C4+3)) -> Jack went shopping for his music CD's. His CD's cost $20, $27, $21, $21 and $23. Find the total price Jack paid.
A7: =Working!B5 -> 2) | B7: =CONCATENATE(OFFSET(Working!D5,0,6*Working!C5+1),OFFSET(Working!D5,0,6*Working!C5+2),OFFSET(Working!D5,0,6*Working!C5+3)) -> Jack did his science homework this week. His homework took 39, 47 and 23 minutes. Find the total time Jack studied this week.
A9: =Working!B6 -> 3) | B9: =CONCATENATE(OFFSET(Working!D6,0,6*Working!C6+1),OFFSET(Working!D6,0,6*Working!C6+2),OFFSET(Working!D6,0,6*Working!C6+3)) -> Athol played golf at his local club. His scores were 90, 68, 72 and 76 strokes. Find the total score Athol achieved.
A11: =Working!B7 -> 4) | B11: =CONCATENATE(OFFSET(Working!D7,0,6*Working!C7+1),OFFSET(Working!D7,0,6*Working!C7+2),OFFSET(Working!D7,0,6*Working!C7+3)) -> Bob did his science homework this week. His homework took 39, 47 and 23 minutes. Find the total time Bob studied this week.
A13: =Working!B8 -> 5) | B13: =CONCATENATE(OFFSET(Working!D8,0,6*Working!C8+1),OFFSET(Working!D8,0,6*Working!C8+2),OFFSET(Working!D8,0,6*Working!C8+3)) -> Sally held her breath while underwater. Her times were 31, 39, 45, 35 and 30 seconds. Find the total time Sally stayed underwater.
A15: =Working!B9 -> 6) | B15: =CONCATENATE(OFFSET(Working!D9,0,6*Working!C9+1),OFFSET(Working!D9,0,6*Working!C9+2),OFFSET(Working!D9,0,6*Working!C9+3)) -> Abbi held her breath while underwater. Her times were 27, 40, 46, 39 and 42 seconds. Find the total time Abbi stayed underwater.
A17: =Working!B10 -> 7) | B17: =CONCATENATE(OFFSET(Working!D10,0,6*Working!C10+1),OFFSET(Working!D10,0,6*Working!C10+2),OFFSET(Working!D10,0,6*Working!C10+3)) -> Will earned his money baby sitting. His payments were $31, $33, $28, $39 and $28. Find the total income Will earned.
A19: =Working!B11 -> 8) | B19: =CONCATENATE(OFFSET(Working!D11,0,6*Working!C11+1),OFFSET(Working!D11,0,6*Working!C11+2),OFFSET(Working!D11,0,6*Working!C11+3)) -> Jan held his breath while underwater. His times were 22, 40 and 36 seconds. Find the total time Jan stayed underwater.
A21: =Working!B12 -> 9) | B21: =CONCATENATE(OFFSET(Working!D12,0,6*Working!C12+1),OFFSET(Working!D12,0,6*Working!C12+2),OFFSET(Working!D12,0,6*Working!C12+3)) -> Jan went shopping for his music DVD's. His CD's cost $26, $25, $21 and $20. Find the total price Jan paid.
A23: =Working!B13 -> 10) | B23: =CONCATENATE(OFFSET(Working!D13,0,6*Working!C13+1),OFFSET(Working!D13,0,6*Working!C13+2),OFFSET(Working!D13,0,6*Working!C13+3)) -> Athol purchased his sweet buns at a local shop. His purchases included 40, 30, 30, 30 and 20 buns. Find the total number Athol purchased.
A25: =Working!B14 -> 11) | B25: =CONCATENATE(OFFSET(Working!D14,0,6*Working!C14+1),OFFSET(Working!D14,0,6*Working!C14+2),OFFSET(Working!D14,0,6*Working!C14+3)) -> Phil trained at his local pool for the 50m backstroke. His daily training was 30, 20, 30 and 20 laps. Find the total number of laps Phil swam.
A27: =Working!B15 -> 12) | B27: =CONCATENATE(OFFSET(Working!D15,0,6*Working!C15+1),OFFSET(Working!D15,0,6*Working!C15+2),OFFSET(Working!D15,0,6*Working!C15+3)) -> Abbi posted her birthday party invitations on different days. Her mailing included 34, 34, 43, 32 and 35 invitations. Find the total number Abbi posted.
A29: =Working!B16 -> 13) | B29: =CONCATENATE(OFFSET(Working!D16,0,6*Working!C16+1),OFFSET(Working!D16,0,6*Working!C16+2),OFFSET(Working!D16,0,6*Working!C16+3)) -> Jane rode her motorbike to different work sites. Her distances were 48, 45, 46 and 32 kilometres. Find the total distance Jane drove to work.
A31: =Working!B17 -> 14) | B31: =CONCATENATE(OFFSET(Working!D17,0,6*Working!C17+1),OFFSET(Working!D17,0,6*Working!C17+2),OFFSET(Working!D17,0,6*Working!C17+3)) -> Boris held his breath while underwater. His times were 31, 39, 45, 35 and 30 seconds. Find the total time Boris stayed underwater.
A33: =Working!B18 -> 15) | B33: =CONCATENATE(OFFSET(Working!D18,0,6*Working!C18+1),OFFSET(Working!D18,0,6*Working!C18+2),OFFSET(Working!D18,0,6*Working!C18+3)) -> Gail purchased her lollies at a local shop. Her purchases included 30, 30, 30 and 30 lollies. Find the total number Gail purchased.
A35: =Working!B19 -> 16) | B35: =CONCATENATE(OFFSET(Working!D19,0,6*Working!C19+1),OFFSET(Working!D19,0,6*Working!C19+2),OFFSET(Working!D19,0,6*Working!C19+3)) -> Paula did her science homework this week. Her homework took 39, 47 and 23 minutes. Find the total time Paula studied this week.
A37: =Working!B20 -> 17) | B37: =CONCATENATE(OFFSET(Working!D20,0,6*Working!C20+1),OFFSET(Working!D20,0,6*Working!C20+2),OFFSET(Working!D20,0,6*Working!C20+3)) -> Janet rode her bike to different work sites. Her distances were 33, 36, 47 and 35 kilometres. Find the total distance Janet drove to work.
A39: =Working!B21 -> 18) | B39: =CONCATENATE(OFFSET(Working!D21,0,6*Working!C21+1),OFFSET(Working!D21,0,6*Working!C21+2),OFFSET(Working!D21,0,6*Working!C21+3)) -> Jill posted her birthday party invitations on different days. Her mailing included 34, 34, 43, 32 and 35 invitations. Find the total number Jill posted.
A41: =Working!B22 -> 19) | B41: =CONCATENATE(OFFSET(Working!D22,0,6*Working!C22+1),OFFSET(Working!D22,0,6*Working!C22+2),OFFSET(Working!D22,0,6*Working!C22+3)) -> Terri played cricket for her local team. Her scores were 47, 12, 29 and 30 runs. Find the total score Terri achieved.
A43: =Working!B23 -> 20) | B43: =CONCATENATE(OFFSET(Working!D23,0,6*Working!C23+1),OFFSET(Working!D23,0,6*Working!C23+2),OFFSET(Working!D23,0,6*Working!C23+3)) -> Harry played touch football for his school team. His scores were 5, 8 and 5 points. Find the total score Harry achieved.

Sheet Answers
A1: =OFFSET(Working!D1,0,6*Working!C3) -> ADDITION PROBLEMS
B2: Answers
A3: Evaluate the following | C3: =CONCATENATE("WorkSheet ",Working!I1,Working!H1) -> WorkSheet APL-593
A5: =Working!B4 -> 1) | B5: =CONCATENATE(OFFSET(Working!D4,0,6*Working!C4+1),OFFSET(Working!D4,0,6*Working!C4+2),OFFSET(Working!D4,0,6*Working!C4+3)) -> Jack went shopping for his music CD's. His CD's cost $20, $27, $21, $21 and $23. Find the total price Jack paid. | C5: =OFFSET(Working!D4,0,6*Working!C4+4) -> $112
A7: =Working!B5 -> 2) | B7: =CONCATENATE(OFFSET(Working!D5,0,6*Working!C5+1),OFFSET(Working!D5,0,6*Working!C5+2),OFFSET(Working!D5,0,6*Working!C5+3)) -> Jack did his science homework this week. His homework took 39, 47 and 23 minutes. Find the total time Jack studied this week. | C7: =OFFSET(Working!D5,0,6*Working!C5+4) -> 109 minutes
A9: =Working!B6 -> 3) | B9: =CONCATENATE(OFFSET(Working!D6,0,6*Working!C6+1),OFFSET(Working!D6,0,6*Working!C6+2),OFFSET(Working!D6,0,6*Working!C6+3)) -> Athol played golf at his local club. His scores were 90, 68, 72 and 76 strokes. Find the total score Athol achieved. | C9: =OFFSET(Working!D6,0,6*Working!C6+4) -> 306 strokes
A11: =Working!B7 -> 4) | B11: =CONCATENATE(OFFSET(Working!D7,0,6*Working!C7+1),OFFSET(Working!D7,0,6*Working!C7+2),OFFSET(Working!D7,0,6*Working!C7+3)) -> Bob did his science homework this week. His homework took 39, 47 and 23 minutes. Find the total time Bob studied this week. | C11: =OFFSET(Working!D7,0,6*Working!C7+4) -> 109 minutes
A13: =Working!B8 -> 5) | B13: =CONCATENATE(OFFSET(Working!D8,0,6*Working!C8+1),OFFSET(Working!D8,0,6*Working!C8+2),OFFSET(Working!D8,0,6*Working!C8+3)) -> Sally held her breath while underwater. Her times were 31, 39, 45, 35 and 30 seconds. Find the total time Sally stayed underwater. | C13: =OFFSET(Working!D8,0,6*Working!C8+4) -> 180 seconds
A15: =Working!B9 -> 6) | B15: =CONCATENATE(OFFSET(Working!D9,0,6*Working!C9+1),OFFSET(Working!D9,0,6*Working!C9+2),OFFSET(Working!D9,0,6*Working!C9+3)) -> Abbi held her breath while underwater. Her times were 27, 40, 46, 39 and 42 seconds. Find the total time Abbi stayed underwater. | C15: =OFFSET(Working!D9,0,6*Working!C9+4) -> 194 seconds
A17: =Working!B10 -> 7) | B17: =CONCATENATE(OFFSET(Working!D10,0,6*Working!C10+1),OFFSET(Working!D10,0,6*Working!C10+2),OFFSET(Working!D10,0,6*Working!C10+3)) -> Will earned his money baby sitting. His payments were $31, $33, $28, $39 and $28. Find the total income Will earned. | C17: =OFFSET(Working!D10,0,6*Working!C10+4) -> $159
A19: =Working!B11 -> 8) | B19: =CONCATENATE(OFFSET(Working!D11,0,6*Working!C11+1),OFFSET(Working!D11,0,6*Working!C11+2),OFFSET(Working!D11,0,6*Working!C11+3)) -> Jan held his breath while underwater. His times were 22, 40 and 36 seconds. Find the total time Jan stayed underwater. | C19: =OFFSET(Working!D11,0,6*Working!C11+4) -> 98 seconds
A21: =Working!B12 -> 9) | B21: =CONCATENATE(OFFSET(Working!D12,0,6*Working!C12+1),OFFSET(Working!D12,0,6*Working!C12+2),OFFSET(Working!D12,0,6*Working!C12+3)) -> Jan went shopping for his music DVD's. His CD's cost $26, $25, $21 and $20. Find the total price Jan paid. | C21: =OFFSET(Working!D12,0,6*Working!C12+4) -> $92
A23: =Working!B13 -> 10) | B23: =CONCATENATE(OFFSET(Working!D13,0,6*Working!C13+1),OFFSET(Working!D13,0,6*Working!C13+2),OFFSET(Working!D13,0,6*Working!C13+3)) -> Athol purchased his sweet buns at a local shop. His purchases included 40, 30, 30, 30 and 20 buns. Find the total number Athol purchased. | C23: =OFFSET(Working!D13,0,6*Working!C13+4) -> 150 buns
A25: =Working!B14 -> 11) | B25: =CONCATENATE(OFFSET(Working!D14,0,6*Working!C14+1),OFFSET(Working!D14,0,6*Working!C14+2),OFFSET(Working!D14,0,6*Working!C14+3)) -> Phil trained at his local pool for the 50m backstroke. His daily training was 30, 20, 30 and 20 laps. Find the total number of laps Phil swam. | C25: =OFFSET(Working!D14,0,6*Working!C14+4) -> 100 laps
A27: =Working!B15 -> 12) | B27: =CONCATENATE(OFFSET(Working!D15,0,6*Working!C15+1),OFFSET(Working!D15,0,6*Working!C15+2),OFFSET(Working!D15,0,6*Working!C15+3)) -> Abbi posted her birthday party invitations on different days. Her mailing included 34, 34, 43, 32 and 35 invitations. Find the total number Abbi posted. | C27: =OFFSET(Working!D15,0,6*Working!C15+4) -> 178 invitations
A29: =Working!B16 -> 13) | B29: =CONCATENATE(OFFSET(Working!D16,0,6*Working!C16+1),OFFSET(Working!D16,0,6*Working!C16+2),OFFSET(Working!D16,0,6*Working!C16+3)) -> Jane rode her motorbike to different work sites. Her distances were 48, 45, 46 and 32 kilometres. Find the total distance Jane drove to work. | C29: =OFFSET(Working!D16,0,6*Working!C16+4) -> 171 kilometres
A31: =Working!B17 -> 14) | B31: =CONCATENATE(OFFSET(Working!D17,0,6*Working!C17+1),OFFSET(Working!D17,0,6*Working!C17+2),OFFSET(Working!D17,0,6*Working!C17+3)) -> Boris held his breath while underwater. His times were 31, 39, 45, 35 and 30 seconds. Find the total time Boris stayed underwater. | C31: =OFFSET(Working!D17,0,6*Working!C17+4) -> 180 seconds
A33: =Working!B18 -> 15) | B33: =CONCATENATE(OFFSET(Working!D18,0,6*Working!C18+1),OFFSET(Working!D18,0,6*Working!C18+2),OFFSET(Working!D18,0,6*Working!C18+3)) -> Gail purchased her lollies at a local shop. Her purchases included 30, 30, 30 and 30 lollies. Find the total number Gail purchased. | C33: =OFFSET(Working!D18,0,6*Working!C18+4) -> 120 lollies
A35: =Working!B19 -> 16) | B35: =CONCATENATE(OFFSET(Working!D19,0,6*Working!C19+1),OFFSET(Working!D19,0,6*Working!C19+2),OFFSET(Working!D19,0,6*Working!C19+3)) -> Paula did her science homework this week. Her homework took 39, 47 and 23 minutes. Find the total time Paula studied this week. | C35: =OFFSET(Working!D19,0,6*Working!C19+4) -> 109 minutes
A37: =Working!B20 -> 17) | B37: =CONCATENATE(OFFSET(Working!D20,0,6*Working!C20+1),OFFSET(Working!D20,0,6*Working!C20+2),OFFSET(Working!D20,0,6*Working!C20+3)) -> Janet rode her bike to different work sites. Her distances were 33, 36, 47 and 35 kilometres. Find the total distance Janet drove to work. | C37: =OFFSET(Working!D20,0,6*Working!C20+4) -> 151 kilometres
A39: =Working!B21 -> 18) | B39: =CONCATENATE(OFFSET(Working!D21,0,6*Working!C21+1),OFFSET(Working!D21,0,6*Working!C21+2),OFFSET(Working!D21,0,6*Working!C21+3)) -> Jill posted her birthday party invitations on different days. Her mailing included 34, 34, 43, 32 and 35 invitations. Find the total number Jill posted. | C39: =OFFSET(Working!D21,0,6*Working!C21+4) -> 178 invitations
A41: =Working!B22 -> 19) | B41: =CONCATENATE(OFFSET(Working!D22,0,6*Working!C22+1),OFFSET(Working!D22,0,6*Working!C22+2),OFFSET(Working!D22,0,6*Working!C22+3)) -> Terri played cricket for her local team. Her scores were 47, 12, 29 and 30 runs. Find the total score Terri achieved. | C41: =OFFSET(Working!D22,0,6*Working!C22+4) -> 118 runs
A43: =Working!B23 -> 20) | B43: =CONCATENATE(OFFSET(Working!D23,0,6*Working!C23+1),OFFSET(Working!D23,0,6*Working!C23+2),OFFSET(Working!D23,0,6*Working!C23+3)) -> Harry played touch football for his school team. His scores were 5, 8 and 5 points. Find the total score Harry achieved. | C43: =OFFSET(Working!D23,0,6*Working!C23+4) -> 18 points

Sheet Working (hidden)
D1: ADDITION PROBLEMS | H1: =INT(900*RAND()+100) -> 593 | I1: APL- | J1: AVERAGES | P1: FRACTION PROBLEMS | V1: MULTIPLICATION PROBLEMS | AB1: PROBLEM SOLVING
BH2: Answer
C3: 0 | AC3: Name | AD3: Type | BJ3: Names | BN3: Type | BO3: Number | BR3: Amount | CJ3: Name | CK3: Type | DN3: Type | DO3: Number | DR3: Amount | EP3: 3 | EW3: 2 | EX3: 2 | FG3: Name | FH3: Type | GH3: Type | GI3: Number | GM3: Amount
A4: 1 | B4: =CONCATENATE(A4,")") -> 1) | C4: 0 | E4: =BC4 -> Jack went shopping for his music CD's. | F4: =BD4 -> His CD's cost $20, $27, $21, $21 and $23. | G4: =BE4 -> Find the total price Jack paid. | H4: =BF4 -> $112 | K4: =DF4 -> Jack rode his motorbike to different work sites. | L4: =DG4 -> His distances were 23, 21, 26 and 21 kilometres. | M4: =DH4 -> Find the average distance Jack drove to work. | N4: =DI4 -> 22 kilometres | Q4: =CONCATENATE(ET4,EU4," of ",ES4,EW4) -> Find nine tenths of 630m | T4: =CONCATENATE(EX4,EW4) -> 567m | W4: =FZ4 -> Jack ran seven days each week. | X4: =GA4 -> Each day he ran 4 km . | Y4: =GB4 -> Find the total distance run by Jack each week. | Z4: =GC4 -> 28km | AC4: =INT(80*RAND()+1) -> 28 | AD4: =INT(9*RAND()+1) -> 2 | AE4: =INT(5*RAND()+1) -> 1 | AF4: =(AD4-1)*5+AE4 -> 6 | AG4: =OFFSET($BJ$4,(AC4-1),0) -> Jack | AH4: =OFFSET($BM$4,(AC4-1),0) -> he | AI4: =OFFSET($BN$4,(AF4-1),0) -> went shopping for | AJ4: =OFFSET($BK$4,(AC4-1),0) -> his | AK4: =OFFSET($BO$4,(AF4-1),0) -> music CD's. | AL4: =OFFSET($BL$4,(AC4-1),0) -> His | AM4: =OFFSET($CB$4,(AF4-1),0) -> CD's cost | AN4: =CONCATENATE(OFFSET($BR$4,(AF4-1),0),OFFSET($BV$4,(AF4-1),0)) -> $20 | AO4: =IF(OFFSET($BW$4,(AF4-1),0)=0,"",CONCATENATE(", ",OFFSET($BR$4,(AF4-1),0),OFFSET($BW$4,(AF4-1),0))) -> , $27 | AP4: =IF(OFFSET($BX$4,(AF4-1),0)=0,"",CONCATENATE(", ",OFFSET($BR$4,(AF4-1),0),OFFSET($BX$4,(AF4-1),0))) -> , $21 | AQ4: =IF(OFFSET($BY$4,(AF4-1),0)=0,"",CONCATENATE(", ",OFFSET($BR$4,(AF4-1),0),OFFSET($BY$4,(AF4-1),0))) -> , $21 | AR4: =CONCATENATE(" and ",OFFSET($BR$4,(AF4-1),0),OFFSET($BZ$4,(AF4-1),0)) -> and $23 | AS4: =IF(OFFSET($CA$4,(AF4-1),0)="","",OFFSET($CA$4,(AF4-1),0)) ->  | AT4: =IF(OFFSET($BR$4,(AF4-1),0)="","",OFFSET($BR$4,(AF4-1),0)) -> $ | AU4: =IF(OFFSET($CA$4,(AF4-1),0)="","",OFFSET($CA$4,(AF4-1),0)) ->  | AV4: =OFFSET($CC$4,(AD4-1),0) -> . | AW4: =OFFSET($CE$4,(AD4-1),0) -> Find the total | AX4: =IF(OFFSET($CD$4,(AF4-1),0)="","",OFFSET($CD$4,(AF4-1),0)) -> price | AY4: =IF(OFFSET($CF$4,(AD4-1),0)="","",OFFSET($CF$4,(AD4-1),0)) ->  | AZ4: =OFFSET($BQ$4,(AD4-1),0) -> paid | BA4: =IF(OFFSET($CH$4,(AD4-1),0)="","",OFFSET($CH$4,(AD4-1),0)) -> . | BC4: =CONCATENATE(AG4,AI4,AJ4,AK4) -> Jack went shopping for his music CD's. | BD4: =CONCATENATE(AL4,AM4,AN4,AO4,AP4,AQ4,AR4,AS4,AV4) -> His CD's cost $20, $27, $21, $21 and $23. | BE4: =CONCATENATE(AW4,AX4,AY4,AG4,AZ4,BA4) -> Find the total price Jack paid. | BF4: =OFFSET($BI$4,(AF4-1),0) -> $112 | BH4: =BV4+BW4+BX4+BY4+BZ4 -> 118 | BI4: =CONCATENATE(BR4,BH4,CA4) -> 118 runs | BJ4: Alan | BK4: his | BL4: His | BM4: he | BN4: played cricket for | BO4: local team. | BQ4: achieved | BS4: =INT(30*RAND()+20) -> 32 | BT4: =INT(30*RAND()+20) -> 49 | BU4: =INT(30*RAND()+20) -> 24 | BV4: =INT(30*RAND()+20) -> 47 | BW4: =IF(BS4<30,0,BS4-20) -> 12 | BX4: =IF(BT4<30,0,BT4-20) -> 29 | BY4: =IF(BU4<30,0,BU4-20) -> 0 | BZ4: =INT(30*RAND()+20) -> 30 | CA4: runs | CB4: scores were | CC4: . | CD4: score | CE4: Find the total | CH4: . | CJ4: =INT(40*RAND()+1) -> 16 | CK4: =INT(9*RAND()+1) -> 8 | CL4: =INT(5*RAND()+1) -> 2 | CM4: =(CK4-1)*5+CL4 -> 37 | CN4: =OFFSET($DN$4,(CM4-1),0) -> rode | CO4: =OFFSET($DO$4,(CM4-1),0) -> motorbike to different work sites. | CP4: =OFFSET($EF$4,(CM4-1),0) -> distances were | CQ4: =CONCATENATE(OFFSET($DR$4,(CM4-1),0),OFFSET($DS$4,(CM4-1),0)) -> 23 | CR4: =IF(OFFSET($DW$4,(CM4-1),0)=0,"",CONCATENATE(", ",OFFSET($DR$4,(CM4-1),0),OFFSET($DW$4,(CM4-1),0))) ->  | CS4: =IF(OFFSET($DX$4,(CM4-1),0)=0,"",CONCATENATE(", ",OFFSET($DR$4,(CM4-1),0),OFFSET($DX$4,(CM4-1),0))) -> , 21 | CT4: =IF(OFFSET($DY$4,(CM4-1),0)=0,"",CONCATENATE(", ",OFFSET($DR$4,(CM4-1),0),OFFSET($DY$4,(CM4-1),0))) -> , 26 | CU4: =CONCATENATE(" and ",OFFSET($DR$4,(CM4-1),0),OFFSET($ED$4,(CM4-1),0)) -> and 21 | CV4: =IF(OFFSET($EE$4,(CM4-1),0)="","",OFFSET($EE$4,(CM4-1),0)) -> kilometres | CW4: =OFFSET($EG$4,(CM4-1),0) -> rode | CX4: =IF(OFFSET($EH$4,(CM4-1),0)="","",OFFSET($EH$4,(CM4-1),0)) -> . | CY4: =OFFSET($EJ$4,(CK4-1),0) -> Find the average | CZ4: =OFFSET($EI$4,(CM4-1),0) -> distance | DA4: =IF(OFFSET($EK$4,(CK4-1),0)="","",OFFSET($EK$4,(CK4-1),0)) ->  | DB4: =IF(OFFSET($EL$4,(CK4-1),0)="","",OFFSET($EL$4,(CK4-1),0)) ->  | DC4: =OFFSET($DQ$4,(CK4-1),0) -> drove to work | DD4: =IF(OFFSET($EM$4,(CK4-1),0)="","",OFFSET($EM$4,(CK4-1),0)) -> . | DF4: =CONCATENATE(AG4,CN4,AJ4,CO4) -> Jack rode his motorbike to different work sites. | DG4: =CONCATENATE(AL4,CP4,CQ4,CR4,CS4,CT4,CU4,CV4,CX4) -> His distances were 23, 21, 26 and 21 kilometres. | DH4: =CONCATENATE(CY4,CZ4,DA4,AG4,DB4,DC4,DD4) -> Find the average distance Jack drove to work. | DI4: =OFFSET($DM$4,(CM4-1),0) -> 22 kilometres | DJ4: =IF(OFFSET($CC$4,(CL4-1),0)="","",OFFSET($CC$4,(CL4-1),0)) -> . | DK4: =(DZ4+ED4)/(EA4+1) -> 21 | DL4: =DK4 -> 21 | DM4: =CONCATENATE(DR4,DL4,EE4) -> 21 runs | DN4: played cricket for | DO4: local team. | DQ4: achieved | DS4: =INT(80*RAND()) -> 59 | DT4: =INT(50*RAND()) -> 28 | DU4: =INT(40*RAND()) -> 1 | DV4: =INT(15*RAND()+5) -> 13 | DW4: =IF(DS4<20,0,DS4-18) -> 41 | DX4: =IF(DT4<20,0,DT4-18) -> 10 | DY4: =IF(DU4<11,0,DU4-10) -> 0 | DZ4: =SUM(DV4:DY4) -> 64 | EA4: =COUNTIF(DV4:DY4,">0") -> 3 | EB4: =INT(DZ4/EA4) -> 21 | EC4: =DZ4 -INT(DZ4/EA4)*EA4 -> 1 | ED4: =IF(EA4=1,EB4-EC4+2,EB4-EC4) -> 20 | EE4: runs | EF4: scores were | EG4: swam | EH4: . | EI4: score | EJ4: Find the average | EM4: . | EO4: =INT(10*RAND()+1) -> 7 | EP4: =IF($EP$3=1,INT(5*RAND()+1),IF($EP$3=2,INT(6*RAND()+1),INT(17*RAND()+1))) -> 17 | EQ4: =INT(20*RAND()+1) -> 5 | ER4: =INT(10*RAND()) -> 5 | ES4: =EO4*OFFSET($FB$4,(EP4-1),0)*OFFSET($FC$4,(EP4-1),0) -> 630 | ET4: Find | EU4: =OFFSET($FA$4,(EP4-1),0) -> nine tenths | EV4: =IF(OFFSET($FD$4,(EQ4-1),0)="","",OFFSET($FD$4,(EQ4-1),0)) ->  | EW4: =IF(OFFSET($FE$4,(EQ4-1),0)="","",OFFSET($FE$4,(EQ4-1),0)) -> m | EX4: =ES4*OFFSET($FC$4,(EP4-1),0)/OFFSET($FB$4,(EP4-1),0) -> 567 | FA4: a half | FB4: 2 | FC4: 1 | FG4: =INT(40*RAND()+1) -> 16 | FH4: =INT(9*RAND()+1) -> 1 | FI4: =INT(5*RAND()+1) -> 5 | FJ4: =(FH4-1)*5+FI4 -> 5 | FK4: =OFFSET($GH$4,(FJ4-1),0) -> ran | FL4: =OFFSET($GI$4,(FJ4-1),0) -> seven days each week. | FM4: =OFFSET($GR$4,(FJ4-1),0) -> Each day | FN4: =OFFSET($GS$4,(FJ4-1),0) -> ran | FO4: =IF(OFFSET($GM$4,(FJ4-1),0)="","",OFFSET($GM$4,(FJ4-1),0)) ->  | FP4: =OFFSET($GN$4,(FJ4-1),0) -> 4 | FQ4: =IF(OFFSET($GP$4,(FJ4-1),0)="","",OFFSET($GP$4,(FJ4-1),0)) -> km | FR4: =OFFSET($GT$4,(FH4-1),0) -> . | FS4: =OFFSET(GV$4,(FH4-1),0) -> Find the total distance | FT4: =IF(OFFSET($GU$4,(FJ4-1),0)="","",OFFSET($GU$4,(FJ4-1),0)) -> run | FU4: =IF(OFFSET($GW$4,(FH4-1),0)="","",OFFSET($GW$4,(FH4-1),0)) -> by | FV4: =IF(OFFSET($GX$4,(FH4-1),0)="","",OFFSET($GX$4,(FH4-1),0)) ->  | FW4: =OFFSET($GL$4,(FH4-1),0) -> each week | FX4: =IF(OFFSET($GY$4,(FH4-1),0)="","",OFFSET($GY$4,(FH4-1),0)) -> . | FZ4: =CONCATENATE(AG4,FK4,FL4) -> Jack ran seven days each week. | GA4: =CONCATENATE(FM4,AH4,FN4,FO4,FP4,FQ4,FR4) -> Each day he ran 4 km . | GB4: =CONCATENATE(FS4,FT4,FU4,AG4,FV4,FW4,FX4) -> Find the total distance run by Jack each week. | GC4: =OFFSET($GG$4,(FJ4-1),0) -> 28km | GD4: =IF(OFFSET($BG$4,(FI4-1),0)="","",OFFSET($BG$4,(FI4-1),0)) ->  | GE4: =GJ4*GN4*GO4+GK4 -> 200 | GF4: =GE4 -> 200 | GG4: =CONCATENATE(GM4,GF4,GQ4) -> 200m | GH4: swam | GI4: twice a week. | GJ4: 2 | GL4: each week | GN4: =INT(5*RAND()+1) -> 2 | GO4: 50 | GP4: laps (50m each) | GQ4: m | GR4: Each day | GS4: swam | GT4: . | GU4: swum | GV4: Find the total distance | GW4: by | GY4: .
A5: 2 | B5: 2) | C5: 0 | E5: =BC5 -> Jack did his science homework this week. | F5: =BD5 -> His homework took 39, 47 and 23 minutes. | G5: =BE5 -> Find the total time Jack studied this week. | H5: =BF5 -> 109 minutes | K5: =DF5 -> Jack participated in his age group in the discus throwing. | L5: =DG5 -> His distances were 28, 10, 10, 19 and 16 metres. | M5: =DH5 -> Find the average result Jack recorded. | N5: =DI5 -> 17 metres | Q5: =CONCATENATE(ET5,EU5," of ",ES5,EW5) -> Find three eights of 96g | T5: =CONCATENATE(EX5,EW5) -> 36g | W5: =FZ5 -> Jack paid rent each pay day. | X5: =GA5 -> Each week he paid $200. | Y5: =GB5 -> Find the total of Jack's rent each year. | Z5: =GC5 -> $10400 | AC5: =INT(80*RAND()+1) -> 28 | AD5: =INT(9*RAND()+1) -> 6 | AE5: =INT(5*RAND()+1) -> 3 | AF5: 28 | AG5: Jack | AH5: =OFFSET($BM$4,(AC5-1),0) -> he | AI5: did | AJ5: =OFFSET($BK$4,(AC5-1),0) -> his | AK5: science homework this week. | AL5: =OFFSET($BL$4,(AC5-1),0) -> His | AM5: homework took | AN5: =CONCATENATE(OFFSET($BR$4,(AF5-1),0),OFFSET($BV$4,(AF5-1),0)) -> 39 | AO5: =IF(OFFSET($BW$4,(AF5-1),0)=0,"",CONCATENATE(", ",OFFSET($BR$4,(AF5-1),0),OFFSET($BW$4,(AF5-1),0))) -> , 47 | AP5: =IF(OFFSET($BX$4,(AF5-1),0)=0,"",CONCATENATE(", ",OFFSET($BR$4,(AF5-1),0),OFFSET($BX$4,(AF5-1),0))) ->  | AQ5: =IF(OFFSET($BY$4,(AF5-1),0)=0,"",CONCATENATE(", ",OFFSET($BR$4,(AF5-1),0),OFFSET($BY$4,(AF5-1),0))) ->  | AR5: =CONCATENATE(" and ",OFFSET($BR$4,(AF5-1),0),OFFSET($BZ$4,(AF5-1),0)) -> and 23 | AS5: =IF(OFFSET($CA$4,(AF5-1),0)="","",OFFSET($CA$4,(AF5-1),0)) -> minutes | AU5: minutes | AV5: . | AW5: Find the total | AX5: time | AZ5: studied this week | BA5: . | BC5: =CONCATENATE(AG5,AI5,AJ5,AK5) -> Jack did his science homework this week. | BD5: His homework took 39, 47 and 23 minutes. | BE5: Find the total time Jack studied this week. | BF5: =OFFSET($BI$4,(AF5-1),0) -> 109 minutes | BH5: =BV5+BW5+BX5+BY5+BZ5 -> 74 | BI5: 74 points | BJ5: Bill | BK5: his | BL5: His | BM5: he | BN5: played basketball for | BO5: local team. | BQ5: paid | BS5: =INT(15*RAND()+15) -> 26 | BT5: =INT(15*RAND()+15) -> 23 | BU5: =INT(15*RAND()+15) -> 20 | BV5: =INT(15*RAND()+15) -> 19 | BW5: =IF(BS5<23,0,BS5-10) -> 16 | BX5: =IF(BT5<23,0,BT5-10) -> 13 | BY5: =IF(BU5<23,0,BU5-10) -> 0 | BZ5: =INT(15*RAND()+15) -> 26 | CA5: points | CB5: scores were | CC5: . | CD5: score | CE5: Find the total | CH5: . | CJ5: =INT(40*RAND()+1) -> 36 | CK5: =INT(9*RAND()+1) -> 3 | CL5: =INT(5*RAND()+1) -> 5 | CM5: 15 | CN5: =OFFSET($DN$4,(CM5-1),0) -> participated in | CO5: =OFFSET($DO$4,(CM5-1),0) -> age group in the discus throwing. | CP5: =OFFSET($EF$4,(CM5-1),0) -> distances were | CQ5: =CONCATENATE(OFFSET($DR$4,(CM5-1),0),OFFSET($DS$4,(CM5-1),0)) -> 28 | CR5: =IF(OFFSET($DW$4,(CM5-1),0)=0,"",CONCATENATE(", ",OFFSET($DR$4,(CM5-1),0),OFFSET($DW$4,(CM5-1),0))) -> , 10 | CS5: =IF(OFFSET($DX$4,(CM5-1),0)=0,"",CONCATENATE(", ",OFFSET($DR$4,(CM5-1),0),OFFSET($DX$4,(CM5-1),0))) -> , 10 | CT5: =IF(OFFSET($DY$4,(CM5-1),0)=0,"",CONCATENATE(", ",OFFSET($DR$4,(CM5-1),0),OFFSET($DY$4,(CM5-1),0))) -> , 19 | CU5: =CONCATENATE(" and ",OFFSET($DR$4,(CM5-1),0),OFFSET($ED$4,(CM5-1),0)) -> and 16 | CV5: =IF(OFFSET($EE$4,(CM5-1),0)="","",OFFSET($EE$4,(CM5-1),0)) -> metres | CW5: =OFFSET($EG$4,(CM5-1),0) -> received | CX5: =IF(OFFSET($EH$4,(CM5-1),0)="","",OFFSET($EH$4,(CM5-1),0)) -> . | CY5: =OFFSET($EJ$4,(CK5-1),0) -> Find the average | CZ5: =OFFSET($EI$4,(CM5-1),0) -> result | DA5: =IF(OFFSET($EK$4,(CK5-1),0)="","",OFFSET($EK$4,(CK5-1),0)) ->  | DB5: =IF(OFFSET($EL$4,(CK5-1),0)="","",OFFSET($EL$4,(CK5-1),0)) ->  | DC5: =OFFSET($DQ$4,(CK5-1),0) -> recorded | DD5: =IF(OFFSET($EM$4,(CK5-1),0)="","",OFFSET($EM$4,(CK5-1),0)) -> . | DF5: Jack participated in his age group in the discus throwing. | DG5: His distances were 28, 10, 10, 19 and 16 metres. | DH5: Find the average result Jack recorded. | DI5: =OFFSET($DM$4,(CM5-1),0) -> 17 metres | DJ5: . | DK5: 10 | DL5: =DK5 -> 10 | DM5: 10 points | DN5: played basketball for | DO5: local team. | DQ5: paid | DS5: =INT(30*RAND()) -> 20 | DT5: =INT(35*RAND()) -> 0 | DU5: =INT(35*RAND()) -> 21 | DV5: =INT(15*RAND()+5) -> 19 | DW5: =IF(DS5<20,0,DS5-18) -> 2 | DX5: =IF(DT5<20,0,DT5-18) -> 0 | DY5: =IF(DU5<11,0,DU5-10) -> 11 | DZ5: 32 | EA5: =COUNTIF(DV5:DY5,">0") -> 3 | EB5: =INT(DZ5/EA5) -> 10 | EC5: =DZ5 -INT(DZ5/EA5)*EA5 -> 2 | ED5: =IF(EA5=1,EB5-EC5+2,EB5-EC5) -> 8 | EE5: points | EF5: scores were | EG5: jogged | EH5: . | EI5: score | EJ5: Find the average | EM5: . | EO5: =INT(10*RAND()+1) -> 4 | EP5: =IF($EP$3=1,INT(5*RAND()+1),IF($EP$3=2,INT(6*RAND()+1),INT(17*RAND()+1))) -> 12 | EQ5: =INT(20*RAND()+1) -> 7 | ER5: =INT(10*RAND()) -> 7 | ES5: =EO5*OFFSET($FB$4,(EP5-1),0)*OFFSET($FC$4,(EP5-1),0) -> 96 | ET5: Find | EU5: =OFFSET($FA$4,(EP5-1),0) -> three eights | EV5: =IF(OFFSET($FD$4,(EQ5-1),0)="","",OFFSET($FD$4,(EQ5-1),0)) ->  | EW5: =IF(OFFSET($FE$4,(EQ5-1),0)="","",OFFSET($FE$4,(EQ5-1),0)) -> g | EX5: =ES5*OFFSET($FC$4,(EP5-1),0)/OFFSET($FB$4,(EP5-1),0) -> 36 | FA5: a third | FB5: 3 | FC5: 1 | FD5: $ | FG5: =INT(40*RAND()+1) -> 10 | FH5: =INT(9*RAND()+1) -> 5 | FI5: =INT(5*RAND()+1) -> 4 | FJ5: 24 | FK5: =OFFSET($GH$4,(FJ5-1),0) -> paid rent | FL5: =OFFSET($GI$4,(FJ5-1),0) -> each pay day. | FM5: =OFFSET($GR$4,(FJ5-1),0) -> Each week | FN5: =OFFSET($GS$4,(FJ5-1),0) -> paid | FO5: =IF(OFFSET($GM$4,(FJ5-1),0)="","",OFFSET($GM$4,(FJ5-1),0)) -> $ | FP5: =OFFSET($GN$4,(FJ5-1),0) -> 200 | FQ5: =IF(OFFSET($GP$4,(FJ5-1),0)="","",OFFSET($GP$4,(FJ5-1),0)) ->  | FR5: =OFFSET($GT$4,(FH5-1),0) -> . | FS5: Find the total of | FT5: =IF(OFFSET($GU$4,(FJ5-1),0)="","",OFFSET($GU$4,(FJ5-1),0)) ->  | FU5: =IF(OFFSET($GW$4,(FH5-1),0)="","",OFFSET($GW$4,(FH5-1),0)) ->  | FV5: =IF(OFFSET($GX$4,(FH5-1),0)="","",OFFSET($GX$4,(FH5-1),0)) -> 's rent | FW5: =OFFSET($GL$4,(FH5-1),0) -> each year | FX5: =IF(OFFSET($GY$4,(FH5-1),0)="","",OFFSET($GY$4,(FH5-1),0)) -> . | FZ5: Jack paid rent each pay day. | GA5: =CONCATENATE(FM5,AH5,FN5,FO5,FP5,FQ5,FR5) -> Each week he paid $200. | GB5: Find the total of Jack's rent each year. | GC5: =OFFSET($GG$4,(FJ5-1),0) -> $10400 | GE5: =GJ5*GN5*GO5+GK5 -> 20 | GF5: =GE5 -> 20 | GG5: 20km | GH5: jogged | GI5: four days each week. | GJ5: 4 | GL5: each year | GN5: =INT(5*RAND()+1) -> 5 | GO5: 1 | GP5: km | GQ5: km | GR5: Each day | GS5: jogged | GT5: . | GU5: jogged | GV5: What is the total of | GX5: ="'s savings" -> 's savings | GY5: ?
A6: 3 | B6: 3) | C6: 0 | E6: Athol played golf at his local club. | F6: His scores were 90, 68, 72 and 76 strokes. | G6: Find the total score Athol achieved. | H6: 306 strokes | K6: Athol participated in his age group in the high jump. | L6: His heights were 118, 100, 114, 117 and 108 centimetres. | M6: Find the average result Athol recorded. | N6: 108 centimetres | Q6: Find seven tenths of 280mL | T6: 196mL | W6: Athol drove to and from work 5 days each week. | X6: Each day he drove 7km each way . | Y6: Find the distance driven by Athol each week. | Z6: 70km | AC6: 38 | AD6: 1 | AE6: 5 | AF6: 5 | AG6: Athol | AH6: he | AI6: played golf at | AJ6: his | AK6: local club. | AL6: His | AM6: scores were | AN6: 90 | AO6: , 68 | AP6: , 72 | AR6: and 76 | AS6: strokes | AU6: strokes | AV6: . | AW6: Find the total | AX6: score | AZ6: achieved | BA6: . | BC6: Athol played golf at his local club. | BD6: His scores were 90, 68, 72 and 76 strokes. | BE6: Find the total score Athol achieved. | BF6: 306 strokes | BH6: 18 | BI6: 18 points | BJ6: Carl | BK6: his | BL6: His | BM6: he | BN6: played touch football for | BO6: school team. | BQ6: purchased | BS6: =INT(10*RAND()+5) -> 6 | BT6: =INT(10*RAND()+5) -> 13 | BU6: =INT(10*RAND()+5) -> 7 | BV6: =INT(10*RAND()+5) -> 5 | BW6: =IF(BS6<9,0,BS6-5) -> 0 | BX6: =IF(BT6<9,0,BT6-5) -> 8 | BY6: =IF(BU6<9,0,BU6-5) -> 0 | BZ6: =INT(10*RAND()+5) -> 5 | CA6: points | CB6: scores were | CC6: . | CD6: score | CE6: Find the total | CH6: . | CJ6: 11 | CK6: 3 | CL6: 1 | CM6: 11 | CN6: participated in | CO6: age group in the high jump. | CP6: heights were | CQ6: 118 | CR6: , 100 | CS6: , 114 | CT6: , 117 | CU6: and 108 | CV6: centimetres | CW6: received | CX6: . | CY6: Find the average | CZ6: result | DC6: recorded | DD6: . | DF6: Athol participated in his age group in the high jump. | DG6: His heights were 118, 100, 114, 117 and 108 centimetres. | DH6: Find the average result Athol recorded. | DI6: 108 centimetres | DJ6: . | DK6: 6 | DL6: 6 | DM6: 6 points | DN6: played touch football for | DO6: school team. | DQ6: recorded | DS6: =INT(20*RAND()) -> 15 | DT6: =INT(20*RAND()) -> 11 | DU6: =INT(20*RAND()) -> 19 | DV6: =INT(5*RAND()+5) -> 6 | DW6: =IF(DS6<10,0,DS6-8) -> 7 | DX6: =IF(DT6<10,0,DT6-8) -> 3 | DY6: =IF(DU6<10,0,DU6-8) -> 11 | DZ6: 27 | EA6: 4 | EB6: 6 | EC6: 3 | ED6: 3 | EE6: points | EF6: scores were | EG6: rode | EH6: . | EI6: score | EJ6: Find the average | EM6: . | EO6: 4 | EP6: 16 | EQ6: 10 | ER6: 5 | ES6: 280 | ET6: Find | EU6: seven tenths | EW6: mL | EX6: 196 | FA6: a quarter | FB6: 4 | FC6: 1 | FE6: cents | FG6: 11 | FH6: 8 | FI6: 1 | FJ6: 36 | FK6: drove to and from work | FL6: 5 days each week. | FM6: Each day | FN6: drove | FP6: 7 | FQ6: km each way | FR6: . | FS6: Find the distance | FT6: driven | FU6: by | FW6: each week | FX6: . | FZ6: Athol drove to and from work 5 days each week. | GA6: Each day he drove 7km each way . | GB6: Find the distance driven by Athol each week. | GC6: 70km | GE6: 20 | GF6: 20 | GG6: 20km | GH6: rode a bike | GI6: five days each week. | GJ6: 5 | GL6: each year | GN6: =INT(5*RAND()+1) -> 4 | GO6: 1 | GP6: km | GQ6: km | GR6: Each day | GS6: rode | GT6: . | GU6: ridden | GV6: Find the total of | GX6: ="'s pocket money" -> 's pocket money | GY6: .
A7: 4 | B7: 4) | C7: 0 | E7: Bob did his science homework this week. | F7: His homework took 39, 47 and 23 minutes. | G7: Find the total time Bob studied this week. | H7: 109 minutes | K7: Bob went shopping for his music CD's. | L7: His CD's cost $17, $20 and $21. | M7: Find the average price Bob paid. | N7: $22 | Q7: Find four fifths of 100 days | T7: 80 days | W7: Bob saved for Christmas. | X7: Each week he saved $14. | Y7: What is the total of Bob's savings each year? | Z7: $182 | AC7: 21 | AD7: 6 | AE7: 3 | AF7: 28 | AG7: Bob | AH7: he | AI7: did | AJ7: his | AK7: science homework this week. | AL7: His | AM7: homework took | AN7: 39 | AO7: , 47 | AR7: and 23 | AS7: minutes | AU7: minutes | AV7: . | AW7: Find the total | AX7: time | AZ7: studied this week | BA7: . | BC7: Bob did his science homework this week. | BD7: His homework took 39, 47 and 23 minutes. | BE7: Find the total time Bob studied this week. | BF7: 109 minutes | BH7: 682 | BI7: 682 points | BJ7: Doug | BK7: his | BL7: His | BM7: he | BN7: played tenpin bowls at | BO7: local bowl-a-rama. | BQ7: swam | BS7: =INT(100*RAND()+180) -> 198 | BT7: =INT(100*RAND()+180) -> 240 | BU7: =INT(100*RAND()+180) -> 260 | BV7: =INT(100*RAND()+180) -> 214 | BW7: =IF(BS7<210,0,BS7-80) -> 0 | BX7: =IF(BT7<210,0,BT7-80) -> 160 | BY7: =IF(BU7<210,0,BU7-80) -> 180 | BZ7: =INT(100*RAND()+120) -> 128 | CA7: points | CB7: scores were | CC7: . | CD7: score | CE7: Find the total | CF7: of laps | CH7: . | CJ7: 2 | CK7: 2 | CL7: 1 | CM7: 6 | CN7: went shopping for | CO7: music CD's. | CP7: CD's cost | CQ7: $17 | CT7: , $20 | CU7: and $21 | CW7: saved | CX7: . | CY7: Find the average | CZ7: price | DC7: paid | DD7: . | DF7: Bob went shopping for his music CD's. | DG7: His CD's cost $17, $20 and $21. | DH7: Find the average price Bob paid. | DI7: $22 | DJ7: . | DK7: 148 | DL7: 148 | DM7: 148 points | DN7: played tenpin bowls at | DO7: local bowl-a-rama. | DQ7: recorded | DS7: =INT(150*RAND()+90) -> 173 | DT7: =INT(150*RAND()+90) -> 109 | DU7: =INT(150*RAND()+90) -> 132 | DV7: =INT(150*RAND()+90) -> 141 | DW7: =IF(DS7<130,0,DS7) -> 173 | DX7: =IF(DT7<130,0,DT7) -> 0 | DY7: =IF(DU7<130,0,DU7) -> 132 | DZ7: 446 | EA7: 3 | EB7: 148 | EC7: 2 | ED7: 146 | EE7: points | EF7: scores were | EG7: walked | EH7: . | EI7: score | EJ7: Find the average | EM7: . | EO7: 5 | EP7: 11 | EQ7: 17 | ER7: 2 | ES7: 100 | ET7: Find | EU7: four fifths | EW7: days | EX7: 80 | FA7: a fifth | FB7: 5 | FC7: 1 | FE7: cm | FG7: 2 | FH7: 2 | FI7: 5 | FJ7: 10 | FK7: saved | FL7: for Christmas. | FM7: Each week | FN7: saved | FO7: $ | FP7: 14 | FR7: . | FS7: What is the total of | FV7: 's savings | FW7: each year | FX7: ? | FZ7: Bob saved for Christmas. | GA7: Each week he saved $14. | GB7: What is the total of Bob's savings each year? | GC7: $182 | GE7: 24 | GF7: 24 | GG7: 24km | GH7: walked | GI7: six days each week. | GJ7: 6 | GL7: each year | GN7: =INT(5*RAND()+1) -> 4 | GO7: 1 | GP7: km | GQ7: km | GR7: Each day | GS7: walked | GT7: . | GU7: walked | GV7: Find the total of | GX7: ="'s earnings" -> 's earnings | GY7: .
A8: 5 | B8: 5) | C8: 0 | E8: Sally held her breath while underwater. | F8: Her times were 31, 39, 45, 35 and 30 seconds. | G8: Find the total time Sally stayed underwater. | H8: 180 seconds | K8: Sally went shopping for her movie DVD's. | L8: Her CD's cost $38, $28, $23, $20 and $24. | M8: Find the average price Sally paid. | N8: $24 | Q8: Find two thirds of 12 lollies | T8: 8 lollies | W8: Sally paid 50c for the stamps on each letter. | X8: On each of 5 work days she posted 76 letters. | Y8: Find the total cost of Sally's postage each week. | Z8: $190 | AC8: 57 | AD8: 5 | AE8: 4 | AF8: 24 | AG8: Sally | AH8: she | AI8: held | AJ8: her | AK8: breath while underwater. | AL8: Her | AM8: times were | AN8: 31 | AO8: , 39 | AP8: , 45 | AQ8: , 35 | AR8: and 30 | AS8: seconds | AU8: seconds | AV8: . | AW8: Find the total | AX8: time | AZ8: stayed underwater | BA8: . | BC8: Sally held her breath while underwater. | BD8: Her times were 31, 39, 45, 35 and 30 seconds. | BE8: Find the total time Sally stayed underwater. | BF8: 180 seconds | BH8: 306 | BI8: 306 strokes | BJ8: Earl | BK8: his | BL8: His | BM8: he | BN8: played golf at | BO8: local club. | BQ8: stayed underwater | BS8: =INT(30*RAND()+70) -> 83 | BT8: =INT(30*RAND()+70) -> 87 | BU8: =INT(30*RAND()+70) -> 78 | BV8: =INT(30*RAND()+70) -> 90 | BW8: =IF(BS8<80,0,BS8-15) -> 68 | BX8: =IF(BT8<80,0,BT8-15) -> 72 | BY8: =IF(BU8<80,0,BU8-15) -> 0 | BZ8: =INT(30*RAND()+70) -> 76 | CA8: strokes | CB8: scores were | CC8: . | CD8: score | CE8: Find the total | CH8: . | CJ8: 32 | CK8: 2 | CL8: 3 | CM8: 8 | CN8: went shopping for | CO8: movie DVD's. | CP8: CD's cost | CQ8: $38 | CR8: , $28 | CS8: , $23 | CT8: , $20 | CU8: and $24 | CW8: saved | CX8: . | CY8: Find the average | CZ8: price | DC8: paid | DD8: . | DF8: Sally went shopping for her movie DVD's. | DG8: Her CD's cost $38, $28, $23, $20 and $24. | DH8: Find the average price Sally paid. | DI8: $24 | DJ8: . | DK8: 89 | DL8: 89 | DM8: 89 strokes | DN8: played golf at | DO8: local club. | DQ8: stayed underwater | DS8: =INT(45*RAND()+50) -> 87 | DT8: =INT(45*RAND()+50) -> 62 | DU8: =INT(45*RAND()+50) -> 55 | DV8: =INT(25*RAND()+70) -> 91 | DW8: =IF(DS8<70,0,DS8) -> 87 | DX8: =IF(DT8<70,0,DT8) -> 0 | DY8: =IF(DU8<70,0,DU8) -> 0 | DZ8: 178 | EA8: 2 | EB8: 89 | EC8: 0 | ED8: 89 | EE8: strokes | EF8: scores were | EG8: ran | EH8: . | EI8: score | EJ8: Find the average | EM8: . | EO8: 2 | EP8: 8 | EQ8: 15 | ER8: 6 | ES8: 12 | ET8: Find | EU8: two thirds | EW8: lollies | EX8: 8 | FA8: a tenth | FB8: 10 | FC8: 1 | FE8: m | FG8: 17 | FH8: 9 | FI8: 3 | FJ8: 43 | FK8: paid 50c for the stamps | FL8: on each letter. | FM8: On each of 5 work days | FN8: posted | FP8: 76 | FQ8: letters | FR8: . | FS8: Find the total cost of | FV8: 's postage | FW8: each week | FX8: . | FZ8: Sally paid 50c for the stamps on each letter. | GA8: On each of 5 work days she posted 76 letters. | GB8: Find the total cost of Sally's postage each week. | GC8: $190 | GE8: 28 | GF8: 28 | GG8: 28km | GH8: ran | GI8: seven days each week. | GJ8: 7 | GL8: each year | GN8: =INT(5*RAND()+1) -> 4 | GO8: 1 | GP8: km | GQ8: km | GR8: Each day | GS8: ran | GT8: . | GU8: run | GV8: Find the total of | GX8: ="'s rent" -> 's rent | GY8: .
A9: 6 | B9: 6) | C9: 0 | E9: Abbi held her breath while underwater. | F9: Her times were 27, 40, 46, 39 and 42 seconds. | G9: Find the total time Abbi stayed underwater. | H9: 194 seconds | K9: Abbi did her science homework this week. | L9: Her homework took 49, 31, 38 and 42 minutes. | M9: Find the average time Abbi studied each day. | N9: 42 minutes | Q9: Find a half of 20 boys | T9: 10 boys | W9: Abbi paid the mortgage each fortnight. | X9: Each fortnight she paid $620. | Y9: Find the total of Abbi's mortgage each year. | Z9: $16120 | AC9: 61 | AD9: 5 | AE9: 5 | AF9: 25 | AG9: Abbi | AH9: she | AI9: held | AJ9: her | AK9: breath while underwater. | AL9: Her | AM9: times were | AN9: 27 | AO9: , 40 | AP9: , 46 | AQ9: , 39 | AR9: and 42 | AS9: seconds | AU9: seconds | AV9: . | AW9: Find the total | AX9: time | AZ9: stayed underwater | BA9: . | BC9: Abbi held her breath while underwater. | BD9: Her times were 27, 40, 46, 39 and 42 seconds. | BE9: Find the total time Abbi stayed underwater. | BF9: 194 seconds | BH9: 112 | BI9: $112 | BJ9: Feng | BK9: his | BL9: His | BM9: he | BN9: went shopping for | BO9: music CD's. | BQ9: studied this week | BR9: $ | BS9: =INT(10*RAND()+20) -> 29 | BT9: =INT(10*RAND()+20) -> 23 | BU9: 23 | BV9: 20 | BW9: =IF(BS9<23,0,BS9-2) -> 27 | BX9: 21 | BY9: 21 | BZ9: =INT(10*RAND()+20) -> 23 | CB9: CD's cost | CC9: . | CD9: price | CE9: Find the total | CH9: . | CJ9: 8 | CK9: 6 | CL9: 3 | CM9: 28 | CN9: did | CO9: science homework this week. | CP9: homework took | CQ9: 49 | CR9: , 31 | CS9: , 38 | CU9: and 42 | CV9: minutes | CW9: paid | CX9: . | CY9: Find the average | CZ9: time | DC9: studied each day | DD9: . | DF9: Abbi did her science homework this week. | DG9: Her homework took 49, 31, 38 and 42 minutes. | DH9: Find the average time Abbi studied each day. | DI9: 42 minutes | DJ9: . | DK9: 22 | DL9: 22 | DM9: $22 | DN9: went shopping for | DO9: music CD's. | DQ9: studied each day | DR9: $ | DS9: =INT(30*RAND()+10) -> 17 | DT9: =INT(30*RAND()+10) -> 15 | DU9: =INT(30*RAND()+10) -> 30 | DV9: =INT(30*RAND()+10) -> 25 | DW9: =IF(DS9<20,0,DS9-10) -> 0 | DX9: 0 | DY9: 20 | DZ9: 45 | EA9: 2 | EB9: 22 | EC9: 1 | ED9: 21 | EF9: CD's cost | EG9: saved | EH9: . | EI9: price | EJ9: Find the average | EM9: . | EO9: 10 | EP9: 1 | EQ9: 13 | ER9: 6 | ES9: 20 | ET9: Find | EU9: a half | EW9: boys | EX9: 10 | FA9: an eight | FB9: 8 | FC9: 1 | FE9: km | FG9: 19 | FH9: 6 | FI9: 2 | FJ9: 27 | FK9: paid the mortgage | FL9: each fortnight. | FM9: Each fortnight | FN9: paid | FO9: $ | FP9: 620 | FR9: . | FS9: Find the total of | FV9: 's mortgage | FW9: each year | FX9: . | FZ9: Abbi paid the mortgage each fortnight. | GA9: Each fortnight she paid $620. | GB9: Find the total of Abbi's mortgage each year. | GC9: $16120 | GE9: 1560 | GF9: 1560 | GG9: $1560 | GH9: saved | GI9: for a car. | GJ9: 52 | GL9: each year | GM9: $ | GN9: =INT(5*RAND()+1)*10 -> 30 | GO9: 1 | GR9: Each week | GS9: saved | GT9: . | GV9: Find the total of | GX9: ="'s mortgage" -> 's mortgage | GY9: .
A10: 7 | B10: 7) | C10: 0 | E10: Will earned his money baby sitting. | F10: His payments were $31, $33, $28, $39 and $28. | G10: Find the total income Will earned. | H10: $159 | K10: Will earned his money mowing lawns. | L10: His payments were $37, $29, $28 and $29. | M10: Find the average income Will earned. | N10: $30 | Q10: Find three eights of 72mg | T10: 27mg | W10: Will paid 50c for the stamps on each letter. | X10: On each of 5 work days he posted 6 letters. | Y10: Find the total cost of Will's postage each week. | Z10: $15 | AC10: 20 | AD10: 7 | AE10: 2 | AF10: 32 | AG10: Will | AH10: he | AI10: earned | AJ10: his | AK10: money baby sitting. | AL10: His | AM10: payments were | AN10: $31 | AO10: , $33 | AP10: , $28 | AQ10: , $39 | AR10: and $28 | AT10: $ | AV10: . | AW10: Find the total | AX10: income | AZ10: earned | BA10: . | BC10: Will earned his money baby sitting. | BD10: His payments were $31, $33, $28, $39 and $28. | BE10: Find the total income Will earned. | BF10: $159 | BH10: 92 | BI10: $92 | BJ10: Goran | BK10: his | BL10: His | BM10: he | BN10: went shopping for | BO10: music DVD's. | BQ10: earned | BR10: $ | BS10: =INT(10*RAND()+20) -> 27 | BT10: 22 | BU10: 23 | BV10: 26 | BW10: 25 | BX10: 0 | BY10: 21 | BZ10: =INT(10*RAND()+20) -> 20 | CB10: CD's cost | CC10: . | CD10: price | CE10: Find the total | CH10: . | CJ10: 32 | CK10: 7 | CL10: 1 | CM10: 31 | CN10: earned | CO10: money mowing lawns. | CP10: payments were | CQ10: $37 | CR10: , $29 | CT10: , $28 | CU10: and $29 | CW10: 's plant grew | CX10: . | CY10: Find the average | CZ10: income | DC10: earned | DD10: . | DF10: Will earned his money mowing lawns. | DG10: His payments were $37, $29, $28 and $29. | DH10: Find the average income Will earned. | DI10: $30 | DJ10: . | DK10: 25 | DL10: 25 | DM10: $25 | DN10: went shopping for | DO10: music DVD's. | DQ10: earned | DR10: $ | DS10: =INT(30*RAND()+10) -> 16 | DT10: 12 | DU10: 24 | DV10: 36 | DW10: 0 | DX10: 0 | DY10: 14 | DZ10: 50 | EA10: 2 | EB10: 25 | EC10: 0 | ED10: 25 | EF10: CD's cost | EG10: saved | EH10: . | EI10: price | EJ10: Find the average | EM10: . | EO10: 3 | EP10: 12 | EQ10: 8 | ER10: 2 | ES10: 72 | ET10: Find | EU10: three eights | EW10: mg | EX10: 27 | FA10: three quarters | FB10: 4 | FC10: 3 | FE10: g | FG10: 33 | FH10: 9 | FI10: 2 | FJ10: 42 | FK10: paid 50c for the stamps | FL10: on each letter. | FM10: On each of 5 work days | FN10: posted | FP10: 6 | FQ10: letters | FR10: . | FS10: Find the total cost of | FV10: 's postage | FW10: each week | FX10: . | FZ10: Will paid 50c for the stamps on each letter. | GA10: On each of 5 work days he posted 6 letters. | GB10: Find the total cost of Will's postage each week. | GC10: $15 | GE10: 20800 | GF10: 20800 | GG10: $20800 | GH10: saved | GI10: for a house. | GJ10: 26 | GL10: after a year | GM10: $ | GN10: =INT(5*RAND()+5)*100 -> 800 | GO10: 1 | GR10: Each fortnight | GS10: saved | GT10: . | GV10: Find the height of | GX10: ="'s plant" -> 's plant | GY10: .
A11: 8 | B11: 8) | C11: 0 | E11: Jan held his breath while underwater. | F11: His times were 22, 40 and 36 seconds. | G11: Find the total time Jan stayed underwater. | H11: 98 seconds | K11: Jan posted his work's mail. | L11: His mailing included 28, 20, 22 and 24 letters. | M11: Find the average number Jan posted each time. | N11: 24 letters | Q11: Find three eights of 168cm | T11: 63cm | W11: Jan drove to and from work 5 days each week. | X11: Each day he drove 7km each way . | Y11: Find the distance driven by Jan each week. | Z11: 70km | AC11: 25 | AD11: 5 | AE11: 3 | AF11: 23 | AG11: Jan | AH11: he | AI11: held | AJ11: his | AK11: breath while underwater. | AL11: His | AM11: times were | AN11: 22 | AQ11: , 40 | AR11: and 36 | AS11: seconds | AU11: seconds | AV11: . | AW11: Find the total | AX11: time | AZ11: stayed underwater | BA11: . | BC11: Jan held his breath while underwater. | BD11: His times were 22, 40 and 36 seconds. | BE11: Find the total time Jan stayed underwater. | BF11: 98 seconds | BH11: 130 | BI11: $130 | BJ11: Harry | BK11: his | BL11: His | BM11: he | BN11: went shopping for | BO11: movie DVD's. | BQ11: drove to work | BR11: $ | BS11: =INT(30*RAND()+20) -> 26 | BT11: 47 | BU11: 42 | BV11: 25 | BW11: =IF(BS11<30,0,BS11-10) -> 0 | BX11: =IF(BT11<30,0,BT11-2) -> 45 | BY11: =IF(BU11<30,0,BU11-2) -> 40 | BZ11: =INT(30*RAND()+20) -> 20 | CB11: CD's cost | CC11: . | CD11: price | CE11: Find the total | CH11: . | CJ11: 2 | CK11: 9 | CL11: 1 | CM11: 41 | CN11: posted | CO11: work's mail. | CP11: mailing included | CQ11: 28 | CR11: , 20 | CS11: , 22 | CU11: and 24 | CV11: letters | CW11: posted | CX11: . | CY11: Find the average | CZ11: number | DC11: posted each time | DD11: . | DF11: Jan posted his work's mail. | DG11: His mailing included 28, 20, 22 and 24 letters. | DH11: Find the average number Jan posted each time. | DI11: 24 letters | DJ11: . | DK11: 24 | DL11: 24 | DM11: $24 | DN11: went shopping for | DO11: movie DVD's. | DQ11: drove to work | DR11: $ | DS11: 38 | DT11: 33 | DU11: 30 | DV11: 25 | DW11: 28 | DX11: 23 | DY11: 20 | DZ11: 96 | EA11: 4 | EB11: 24 | EC11: 0 | ED11: 24 | EF11: CD's cost | EG11: saved | EH11: . | EI11: price | EJ11: Find the average | EM11: . | EO11: 7 | EP11: 12 | EQ11: 4 | ER11: 7 | ES11: 168 | ET11: Find | EU11: three eights | EW11: cm | EX11: 63 | FA11: two thirds | FB11: 3 | FC11: 2 | FE11: mg | FG11: 31 | FH11: 8 | FI11: 1 | FJ11: 36 | FK11: drove to and from work | FL11: 5 days each week. | FM11: Each day | FN11: drove | FP11: 7 | FQ11: km each way | FR11: . | FS11: Find the distance | FT11: driven | FU11: by | FW11: each week | FX11: . | FZ11: Jan drove to and from work 5 days each week. | GA11: Each day he drove 7km each way . | GB11: Find the distance driven by Jan each week. | GC11: 70km | GE11: 60 | GF11: 60 | GG11: $60 | GH11: saved | GI11: for a MP3 player. | GJ11: 12 | GL11: each week | GM11: $ | GN11: =INT(10*RAND()+5) -> 5 | GO11: 1 | GR11: Each month | GS11: saved | GT11: . | GV11: Find the distance | GW11: by | GY11: .
A12: 9 | B12: 9) | C12: 0 | E12: Jan went shopping for his music DVD's. | F12: His CD's cost $26, $25, $21 and $20. | G12: Find the total price Jan paid. | H12: $92 | K12: Jan swam in his age group in the 50m freestyle. | L12: His times were 36, 26, 28, 33 and 30 seconds. | M12: Find the average time Jan recorded. | N12: 30 seconds | Q12: Find a third of 18 boys | T12: 6 boys | W12: Jan was given pocket money each week. | X12: Each week he received $4. | Y12: Find the total of Jan's pocket money each year. | Z12: $208 | AC12: 25 | AD12: 2 | AE12: 2 | AF12: 7 | AG12: Jan | AH12: he | AI12: went shopping for | AJ12: his | AK12: music DVD's. | AL12: His | AM12: CD's cost | AN12: $26 | AO12: , $25 | AQ12: , $21 | AR12: and $20 | AT12: $ | AV12: . | AW12: Find the total | AX12: price | AZ12: paid | BA12: . | BC12: Jan went shopping for his music DVD's. | BD12: His CD's cost $26, $25, $21 and $20. | BE12: Find the total price Jan paid. | BF12: $92 | BH12: 176 | BI12: $176 | BJ12: Juan | BK12: his | BL12: His | BM12: he | BN12: went shopping for | BO12: playstation games. | BQ12: posted | BR12: $ | BS12: =INT(50*RAND()+20) -> 64 | BT12: =INT(50*RAND()+20) -> 34 | BU12: 25 | BV12: 52 | BW12: =IF(BS12<30,0,BS12-15) -> 49 | BX12: 19 | BY12: 0 | BZ12: =INT(50*RAND()+20) -> 56 | CB12: CD's cost | CC12: . | CD12: price | CE12: Find the total | CH12: . | CJ12: 19 | CK12: 4 | CL12: 1 | CM12: 16 | CN12: swam in | CO12: age group in the 50m freestyle. | CP12: times were | CQ12: 36 | CR12: , 26 | CS12: , 28 | CT12: , 33 | CU12: and 30 | CV12: seconds | CW12: earned | CX12: . | CY12: Find the average | CZ12: time | DC12: recorded | DD12: . | DF12: Jan swam in his age group in the 50m freestyle. | DG12: His times were 36, 26, 28, 33 and 30 seconds. | DH12: Find the average time Jan recorded. | DI12: 30 seconds | DJ12: . | DK12: 39 | DL12: 39 | DM12: $39 | DN12: went shopping for | DO12: playstation games. | DQ12: posted each time | DR12: $ | DS12: =INT(70*RAND()+10) -> 78 | DT12: =INT(70*RAND()+10) -> 48 | DU12: =INT(70*RAND()+10) -> 46 | DV12: =INT(70*RAND()+10) -> 14 | DW12: 68 | DX12: 38 | DY12: 36 | DZ12: 156 | EA12: 4 | EB12: 39 | EC12: 0 | ED12: 39 | EF12: CD's cost | EG12: saved | EH12: . | EI12: price | EJ12: Find the average | EM12: . | EO12: 6 | EP12: 2 | EQ12: 13 | ER12: 9 | ES12: 18 | ET12: Find | EU12: a third | EW12: boys | EX12: 6 | FA12: two fifths | FB12: 5 | FC12: 2 | FE12: kg | FG12: 2 | FH12: 3 | FI12: 1 | FJ12: 11 | FK12: was given | FL12: pocket money each week. | FM12: Each week | FN12: received | FO12: $ | FP12: 4 | FR12: . | FS12: Find the total of | FV12: 's pocket money | FW12: each year | FX12: . | FZ12: Jan was given pocket money each week. | GA12: Each week he received $4. | GB12: Find the total of Jan's pocket money each year. | GC12: $208 | GE12: 1664 | GF12: 1664 | GG12: $1664 | GH12: saved | GI12: for a holiday. | GJ12: 52 | GL12: each week | GM12: $ | GN12: =INT(50*RAND()+5) -> 32 | GO12: 1 | GR12: Each week | GS12: saved | GT12: . | GV12: Find the total cost of | GX12: ="'s postage" -> 's postage | GY12: .
A13: 10 | B13: 10) | C13: 0 | E13: Athol purchased his sweet buns at a local shop. | F13: His purchases included 40, 30, 30, 30 and 20 buns. | G13: Find the total number Athol purchased. | H13: 150 buns | K13: Athol posted his birthday party invitations on different days. | L13: His mailing included 33, 25, 27, 29 and 24 invitations. | M13: Find the average number Athol posted each time. | N13: 27 invitations | Q13: Find seven eights of 224 cents | T13: 196 cents | W13: Athol drove to and from work 5 days each week. | X13: Each day he drove 7km each way . | Y13: Find the distance driven by Athol each week. | Z13: 70km | AC13: 38 | AD13: 3 | AE13: 3 | AF13: 13 | AG13: Athol | AH13: he | AI13: purchased | AJ13: his | AK13: sweet buns at a local shop. | AL13: His | AM13: purchases included | AN13: 40 | AO13: , 30 | AP13: , 30 | AQ13: , 30 | AR13: and 20 | AS13: buns | AU13: buns | AV13: . | AW13: Find the total | AX13: number | AZ13: purchased | BA13: . | BC13: Athol purchased his sweet buns at a local shop. | BD13: His purchases included 40, 30, 30, 30 and 20 buns. | BE13: Find the total number Athol purchased. | BF13: 150 buns | BH13: 268 | BI13: $268 | BJ13: Len | BK13: his | BL13: His | BM13: he | BN13: went shopping for | BO13: PC games. | BR13: $ | BS13: =INT(50*RAND()+20) -> 69 | BT13: 65 | BU13: 67 | BV13: 45 | BW13: 54 | BX13: 50 | BY13: 52 | BZ13: =INT(50*RAND()+20) -> 67 | CB13: CD's cost | CC13: . | CD13: price | CJ13: 30 | CK13: 9 | CL13: 5 | CM13: 45 | CN13: posted | CO13: birthday party invitations on different days. | CP13: mailing included | CQ13: 33 | CR13: , 25 | CS13: , 27 | CT13: , 29 | CU13: and 24 | CV13: invitations | CW13: posted | CX13: . | CY13: Find the average | CZ13: number | DC13: posted each time | DD13: . | DF13: Athol posted his birthday party invitations on different days. | DG13: His mailing included 33, 25, 27, 29 and 24 invitations. | DH13: Find the average number Athol posted each time. | DI13: 27 invitations | DJ13: . | DK13: 25 | DL13: 25 | DM13: $25 | DN13: went shopping for | DO13: PC games. | DR13: $ | DS13: =INT(50*RAND()+10) -> 41 | DT13: =INT(50*RAND()+10) -> 26 | DU13: =INT(50*RAND()+10) -> 29 | DV13: =INT(50*RAND()+10) -> 35 | DW13: 31 | DX13: 16 | DY13: 19 | DZ13: 101 | EA13: 4 | EB13: 25 | EC13: 1 | ED13: 24 | EF13: CD's cost | EG13: saved | EH13: . | EI13: price | EO13: 4 | EP13: 14 | EQ13: 3 | ER13: 1 | ES13: 224 | ET13: Find | EU13: seven eights | EW13: cents | EX13: 196 | FA13: three fifths | FB13: 5 | FC13: 3 | FE13: mL | FG13: 1 | FH13: 8 | FI13: 1 | FJ13: 36 | FK13: drove to and from work | FL13: 5 days each week. | FM13: Each day | FN13: drove | FP13: 7 | FQ13: km each way | FR13: . | FS13: Find the distance | FT13: driven | FU13: by | FW13: each week | FX13: . | FZ13: Athol drove to and from work 5 days each week. | GA13: Each day he drove 7km each way . | GB13: Find the distance driven by Athol each week. | GC13: 70km | GE13: 182 | GF13: 182 | GG13: $182 | GH13: saved | GI13: for Christmas. | GJ13: 13 | GM13: $ | GN13: =INT(10*RAND()+10) -> 14 | GO13: 1 | GR13: Each week | GS13: saved | GT13: . | GV13: Find the total of | GY13: .
A14: 11 | B14: 11) | C14: 0 | E14: Phil trained at his local pool for the 50m backstroke. | F14: His daily training was 30, 20, 30 and 20 laps. | G14: Find the total number of laps Phil swam. | H14: 100 laps | K14: Phil held his breath while underwater. | L14: His times were 56, 38, 36 and 43 seconds. | M14: Find the average time Phil stayed underwater. | N14: 43 seconds | Q14: Find three quarters of 72mg | T14: 54mg | W14: Phil jogged four days each week. | X14: Each day he jogged 5 km . | Y14: Find the total distance jogged by Phil each week. | Z14: 20km | AC14: 24 | AD14: 4 | AE14: 4 | AF14: 19 | AG14: Phil | AH14: he | AI14: trained at | AJ14: his | AK14: local pool for the 50m backstroke. | AL14: His | AM14: daily training was | AN14: 30 | AO14: , 20 | AQ14: , 30 | AR14: and 20 | AS14: laps | AU14: laps | AV14: . | AW14: Find the total | AX14: number | AY14: of laps | AZ14: swam | BA14: . | BC14: Phil trained at his local pool for the 50m backstroke. | BD14: His daily training was 30, 20, 30 and 20 laps. | BE14: Find the total number of laps Phil swam. | BF14: 100 laps | BH14: 120 | BI14: 120 lollies | BJ14: Mick | BK14: his | BL14: His | BM14: he | BN14: purchased | BO14: lollies at a local shop. | BS14: =10*INT(3*RAND()+2) -> 40 | BT14: =10*INT(3*RAND()+2) -> 40 | BU14: =10*INT(3*RAND()+2) -> 20 | BV14: =10*INT(3*RAND()+2) -> 30 | BW14: =IF(BS14<30,0,BS14-10) -> 30 | BX14: =IF(BT14<30,0,BT14-10) -> 30 | BY14: 0 | BZ14: =10*INT(3*RAND()+2) -> 30 | CA14: lollies | CB14: purchases included | CC14: . | CD14: number | CJ14: 3 | CK14: 5 | CL14: 2 | CM14: 22 | CN14: held | CO14: breath while underwater. | CP14: times were | CQ14: 56 | CR14: , 38 | CS14: , 36 | CU14: and 43 | CV14: seconds | CW14: paid | CX14: . | CY14: Find the average | CZ14: time | DC14: stayed underwater | DD14: . | DF14: Phil held his breath while underwater. | DG14: His times were 56, 38, 36 and 43 seconds. | DH14: Find the average time Phil stayed underwater. | DI14: 43 seconds | DJ14: . | DK14: 108 | DL14: 108 | DM14: 108 centimetres | DN14: participated in | DO14: age group in the high jump. | DS14: =INT(50*RAND()+90) -> 118 | DT14: =INT(50*RAND()+90) -> 132 | DU14: =INT(50*RAND()+90) -> 127 | DV14: =INT(50*RAND()+90) -> 101 | DW14: =IF(DS14<20,0,DS14-18) -> 100 | DX14: 114 | DY14: =IF(DU14<11,0,DU14-10) -> 117 | DZ14: 432 | EA14: 4 | EB14: 108 | EC14: 0 | ED14: 108 | EE14: centimetres | EF14: heights were | EG14: received | EH14: . | EI14: result | EO14: =2*INT(10*RAND()+1) -> 6 | EP14: 7 | EQ14: 8 | ER14: 8 | ES14: 72 | ET14: Find | EU14: three quarters | EW14: mg | EX14: 54 | FA14: four fifths | FB14: 5 | FC14: 4 | FE14: L | FG14: 7 | FH14: 1 | FI14: 2 | FJ14: 2 | FK14: jogged | FL14: four days each week. | FM14: Each day | FN14: jogged | FP14: 5 | FQ14: km | FR14: . | FS14: Find the total distance | FT14: jogged | FU14: by | FW14: each week | FX14: . | FZ14: Phil jogged four days each week. | GA14: Each day he jogged 5 km . | GB14: Find the total distance jogged by Phil each week. | GC14: 20km | GE14: 208 | GF14: 208 | GG14: $208 | GH14: was given | GI14: pocket money each week. | GJ14: 52 | GM14: $ | GN14: =INT(5*RAND()+1) -> 4 | GO14: 1 | GR14: Each week | GS14: received | GT14: . | GV14: Find the total of | GY14: .
A15: 12 | B15: 12) | C15: 0 | E15: Abbi posted her birthday party invitations on different days. | F15: Her mailing included 34, 34, 43, 32 and 35 invitations. | G15: Find the total number Abbi posted. | H15: 178 invitations | K15: Abbi played basketball for her local team. | L15: Her scores were 20, 2, 11 and 8 points. | M15: Find the average score Abbi achieved. | N15: 10 points | Q15: Find a fifth of 20 boys | T15: 4 boys | W15: Abbi worked five days each week. | X15: Each day she earned $199. | Y15: Find the total of Abbi's earnings each year. | Z15: $51740 | AC15: 61 | AD15: 9 | AE15: 5 | AF15: 45 | AG15: Abbi | AH15: she | AI15: posted | AJ15: her | AK15: birthday party invitations on different days. | AL15: Her | AM15: mailing included | AN15: 34 | AO15: , 34 | AP15: , 43 | AQ15: , 32 | AR15: and 35 | AS15: invitations | AU15: invitations | AV15: . | AW15: Find the total | AX15: number | AZ15: posted | BA15: . | BC15: Abbi posted her birthday party invitations on different days. | BD15: Her mailing included 34, 34, 43, 32 and 35 invitations. | BE15: Find the total number Abbi posted. | BF15: 178 invitations | BH15: 130 | BI15: 130 cakes | BJ15: Nino | BK15: his | BL15: His | BM15: he | BN15: purchased | BO15: cakes at a local shop. | BS15: =10*INT(3*RAND()+2) -> 30 | BT15: 30 | BU15: 40 | BV15: 40 | BW15: 20 | BX15: 20 | BY15: 30 | BZ15: 20 | CA15: cakes | CB15: purchases included | CC15: . | CD15: number | CJ15: 17 | CK15: 1 | CL15: 2 | CM15: 2 | CN15: played basketball for | CO15: local team. | CP15: scores were | CQ15: 20 | CR15: , 2 | CT15: , 11 | CU15: and 8 | CV15: points | CW15: jogged | CX15: . | CY15: Find the average | CZ15: score | DC15: achieved | DD15: . | DF15: Abbi played basketball for her local team. | DG15: Her scores were 20, 2, 11 and 8 points. | DH15: Find the average score Abbi achieved. | DI15: 10 points | DJ15: . | DK15: 332 | DL15: 332 | DM15: 332 centimetres | DN15: participated in | DO15: age group in the long jump. | DS15: =INT(150*RAND()+300) -> 316 | DT15: =INT(150*RAND()+300) -> 306 | DU15: =INT(150*RAND()+300) -> 420 | DV15: =INT(150*RAND()+300) -> 332 | DW15: 298 | DX15: 288 | DY15: =IF(DU15<11,0,DU15-10) -> 410 | DZ15: 1328 | EA15: 4 | EB15: 332 | EC15: 0 | ED15: 332 | EE15: centimetres | EF15: distances were | EG15: earned | EH15: . | EI15: result | EO15: =2*INT(10*RAND()+1) -> 4 | EP15: 4 | EQ15: 13 | ER15: 5 | ES15: 20 | ET15: Find | EU15: a fifth | EW15: boys | EX15: 4 | FA15: three eights | FB15: 8 | FC15: 3 | FE15: people | FG15: 24 | FH15: 4 | FI15: 3 | FJ15: 18 | FK15: worked | FL15: five days each week. | FM15: Each day | FN15: earned | FO15: $ | FP15: 199 | FR15: . | FS15: Find the total of | FV15: 's earnings | FW15: each year | FX15: . | FZ15: Abbi worked five days each week. | GA15: Each day she earned $199. | GB15: Find the total of Abbi's earnings each year. | GC15: $51740 | GE15: 416 | GF15: 416 | GG15: $416 | GH15: worked for | GI15: pocket money each week. | GJ15: 52 | GM15: $ | GN15: =INT(5*RAND()+5) -> 8 | GO15: 1 | GR15: Each week | GS15: earned | GT15: . | GV15: Find the total of | GY15: .
A16: 13 | B16: 13) | C16: 0 | E16: Jane rode her motorbike to different work sites. | F16: Her distances were 48, 45, 46 and 32 kilometres. | G16: Find the total distance Jane drove to work. | H16: 171 kilometres | K16: Jane earned her money delivering newspapers. | L16: Her payments were $29, $21, $24, $24 and $23. | M16: Find the average income Jane earned. | N16: $23 | Q16: Find three fifths of 60mg | T16: 36mg | W16: Jane paid 50c for the stamps on each letter. | X16: On each of 5 work days she posted 76 letters. | Y16: Find the total cost of Jane's postage each week. | Z16: $190 | AC16: 65 | AD16: 8 | AE16: 2 | AF16: 37 | AG16: Jane | AH16: she | AI16: rode | AJ16: her | AK16: motorbike to different work sites. | AL16: Her | AM16: distances were | AN16: 48 | AO16: , 45 | AP16: , 46 | AR16: and 32 | AS16: kilometres | AU16: kilometres | AV16: . | AW16: Find the total | AX16: distance | AZ16: drove to work | BA16: . | BC16: Jane rode her motorbike to different work sites. | BD16: Her distances were 48, 45, 46 and 32 kilometres. | BE16: Find the total distance Jane drove to work. | BF16: 171 kilometres | BH16: 150 | BI16: 150 buns | BJ16: Ollie | BK16: his | BL16: His | BM16: he | BN16: purchased | BO16: sweet buns at a local shop. | BS16: 40 | BT16: 40 | BU16: 40 | BV16: 40 | BW16: 30 | BX16: 30 | BY16: 30 | BZ16: 20 | CA16: buns | CB16: purchases included | CC16: . | CD16: number | CJ16: 25 | CK16: 7 | CL16: 4 | CM16: 34 | CN16: earned | CO16: money delivering newspapers. | CP16: payments were | CQ16: $29 | CR16: , $21 | CS16: , $24 | CT16: , $24 | CU16: and $23 | CW16: 's flower grew | CX16: . | CY16: Find the average | CZ16: income | DC16: earned | DD16: . | DF16: Jane earned her money delivering newspapers. | DG16: Her payments were $29, $21, $24, $24 and $23. | DH16: Find the average income Jane earned. | DI16: $23 | DJ16: . | DK16: 28 | DL16: 28 | DM16: 28 metres | DN16: participated in | DO16: age group in the javelin throwing. | DS16: =INT(50*RAND()+20) -> 69 | DT16: =INT(50*RAND()+20) -> 45 | DU16: =INT(50*RAND()+20) -> 25 | DV16: =INT(50*RAND()+20) -> 20 | DW16: 51 | DX16: 27 | DY16: =IF(DU16<11,0,DU16-10) -> 15 | DZ16: 113 | EA16: 4 | EB16: 28 | EC16: 1 | ED16: 27 | EE16: metres | EF16: distances were | EG16: received | EH16: . | EI16: result | EO16: 4 | EP16: 10 | EQ16: 8 | ER16: 1 | ES16: 60 | ET16: Find | EU16: three fifths | EW16: mg | EX16: 36 | FA16: five eights | FB16: 8 | FC16: 5 | FE16: boys | FG16: 16 | FH16: 9 | FI16: 3 | FJ16: 43 | FK16: paid 50c for the stamps | FL16: on each letter. | FM16: On each of 5 work days | FN16: posted | FP16: 76 | FQ16: letters | FR16: . | FS16: Find the total cost of | FV16: 's postage | FW16: each week | FX16: . | FZ16: Jane paid 50c for the stamps on each letter. | GA16: On each of 5 work days she posted 76 letters. | GB16: Find the total cost of Jane's postage each week. | GC16: $190 | GE16: 208 | GF16: 208 | GG16: $208 | GH16: was given | GI16: pocket money each fortnight. | GJ16: 26 | GM16: $ | GN16: =INT(10*RAND()+5) -> 8 | GO16: 1 | GR16: Each fortnight | GS16: received | GT16: . | GV16: Find the total of | GY16: .
A17: 14 | B17: 14) | C17: 0 | E17: Boris held his breath while underwater. | F17: His times were 31, 39, 45, 35 and 30 seconds. | G17: Find the total time Boris stayed underwater. | H17: 180 seconds | K17: Boris participated in his age group in the javelin throwing. | L17: His distances were 69, 51, 27, 15 and 27 metres. | M17: Find the average result Boris recorded. | N17: 28 metres | Q17: Find nine tenths of 540 | T17: 486 | W17: Boris worked five days each week. | X17: Each day he earned $199. | Y17: Find the total of Boris's earnings each year. | Z17: $51740 | AC17: 31 | AD17: 5 | AE17: 4 | AF17: 24 | AG17: Boris | AH17: he | AI17: held | AJ17: his | AK17: breath while underwater. | AL17: His | AM17: times were | AN17: 31 | AO17: , 39 | AP17: , 45 | AQ17: , 35 | AR17: and 30 | AS17: seconds | AU17: seconds | AV17: . | AW17: Find the total | AX17: time | AZ17: stayed underwater | BA17: . | BC17: Boris held his breath while underwater. | BD17: His times were 31, 39, 45, 35 and 30 seconds. | BE17: Find the total time Boris stayed underwater. | BF17: 180 seconds | BH17: 120 | BI17: 120 cans | BJ17: Pedro | BK17: his | BL17: His | BM17: he | BN17: purchased | BO17: softdrink at a local shop. | BS17: 30 | BT17: 40 | BU17: 20 | BV17: 40 | BW17: 20 | BX17: 30 | BY17: 0 | BZ17: 30 | CA17: cans | CB17: purchases included | CC17: . | CD17: number | CJ17: 37 | CK17: 3 | CL17: 3 | CM17: 13 | CN17: participated in | CO17: age group in the javelin throwing. | CP17: distances were | CQ17: 69 | CR17: , 51 | CS17: , 27 | CT17: , 15 | CU17: and 27 | CV17: metres | CW17: received | CX17: . | CY17: Find the average | CZ17: result | DC17: recorded | DD17: . | DF17: Boris participated in his age group in the javelin throwing. | DG17: His distances were 69, 51, 27, 15 and 27 metres. | DH17: Find the average result Boris recorded. | DI17: 28 metres | DJ17: . | DK17: 8 | DL17: 8 | DM17: 8 metres | DN17: participated in | DO17: age group in the shot-put throwing. | DS17: =INT(5*RAND()+10) -> 13 | DT17: =INT(5*RAND()+10) -> 12 | DU17: =INT(5*RAND()+10) -> 12 | DV17: =INT(5*RAND()+10) -> 14 | DW17: 0 | DX17: 0 | DY17: =IF(DU17<11,0,DU17-10) -> 2 | DZ17: 16 | EA17: 2 | EB17: 8 | EC17: 0 | ED17: 8 | EE17: metres | EF17: distances were | EG17: earned | EH17: . | EI17: result | EO17: 6 | EP17: 17 | EQ17: 1 | ER17: 4 | ES17: 540 | ET17: Find | EU17: nine tenths | EX17: 486 | FA17: seven eights | FB17: 8 | FC17: 7 | FE17: girls | FG17: 36 | FH17: 4 | FI17: 3 | FJ17: 18 | FK17: worked | FL17: five days each week. | FM17: Each day | FN17: earned | FO17: $ | FP17: 199 | FR17: . | FS17: Find the total of | FV17: 's earnings | FW17: each year | FX17: . | FZ17: Boris worked five days each week. | GA17: Each day he earned $199. | GB17: Find the total of Boris's earnings each year. | GC17: $51740 | GE17: 546 | GF17: 546 | GG17: $546 | GH17: worked for | GI17: pocket money each fortnight. | GJ17: 26 | GM17: $ | GN17: =INT(15*RAND()+10) -> 21 | GO17: 1 | GR17: Each fortnight | GS17: earned | GT17: . | GV17: Find the total of | GY17: .
A18: 15 | B18: 15) | C18: 0 | E18: Gail purchased her lollies at a local shop. | F18: Her purchases included 30, 30, 30 and 30 lollies. | G18: Find the total number Gail purchased. | H18: 120 lollies | K18: Gail swam in her age group in the 50m butterfly. | L18: Her times were 44, 34, 36, 38 and 36 seconds. | M18: Find the average time Gail recorded. | N18: 36 seconds | Q18: Find nine tenths of 360 years | T18: 324 years | W18: Gail was given pocket money each week. | X18: Each week she received $17. | Y18: Find the total of Gail's pocket money each year. | Z18: $884 | AC18: 47 | AD18: 3 | AE18: 1 | AF18: 11 | AG18: Gail | AH18: she | AI18: purchased | AJ18: her | AK18: lollies at a local shop. | AL18: Her | AM18: purchases included | AN18: 30 | AO18: , 30 | AP18: , 30 | AR18: and 30 | AS18: lollies | AU18: lollies | AV18: . | AW18: Find the total | AX18: number | AZ18: purchased | BA18: . | BC18: Gail purchased her lollies at a local shop. | BD18: Her purchases included 30, 30, 30 and 30 lollies. | BE18: Find the total number Gail purchased. | BF18: 120 lollies | BH18: 100 | BI18: 100 bottles | BJ18: Rod | BK18: his | BL18: His | BM18: he | BN18: purchased | BO18: softdrink at a local shop. | BS18: 20 | BT18: 30 | BU18: 30 | BV18: 20 | BW18: 0 | BX18: 20 | BY18: 20 | BZ18: 40 | CA18: bottles | CB18: purchases included | CC18: . | CD18: number | CJ18: 16 | CK18: 4 | CL18: 5 | CM18: 20 | CN18: swam in | CO18: age group in the 50m butterfly. | CP18: times were | CQ18: 44 | CR18: , 34 | CS18: , 36 | CT18: , 38 | CU18: and 36 | CV18: seconds | CW18: earned | CX18: . | CY18: Find the average | CZ18: time | DC18: recorded | DD18: . | DF18: Gail swam in her age group in the 50m butterfly. | DG18: Her times were 44, 34, 36, 38 and 36 seconds. | DH18: Find the average time Gail recorded. | DI18: 36 seconds | DJ18: . | DK18: 17 | DL18: 17 | DM18: 17 metres | DN18: participated in | DO18: age group in the discus throwing. | DS18: =INT(20*RAND()+20) -> 28 | DT18: =INT(20*RAND()+20) -> 28 | DU18: =INT(20*RAND()+20) -> 29 | DV18: =INT(20*RAND()+20) -> 30 | DW18: 10 | DX18: 10 | DY18: =IF(DU18<11,0,DU18-10) -> 19 | DZ18: 69 | EA18: 4 | EB18: 17 | EC18: 1 | ED18: 16 | EE18: metres | EF18: distances were | EG18: received | EH18: . | EI18: result | EO18: 4 | EP18: 17 | EQ18: 20 | ER18: 5 | ES18: 360 | ET18: Find | EU18: nine tenths | EW18: years | EX18: 324 | FA18: three tenths | FB18: 10 | FC18: 3 | FE18: lollies | FG18: 4 | FH18: 3 | FI18: 5 | FJ18: 15 | FK18: was given | FL18: pocket money each week. | FM18: Each week | FN18: received | FO18: $ | FP18: 17 | FR18: . | FS18: Find the total of | FV18: 's pocket money | FW18: each year | FX18: . | FZ18: Gail was given pocket money each week. | GA18: Each week she received $17. | GB18: Find the total of Gail's pocket money each year. | GC18: $884 | GE18: 884 | GF18: 884 | GG18: $884 | GH18: was given | GI18: pocket money each week. | GJ18: 52 | GM18: $ | GN18: =INT(15*RAND()+5) -> 17 | GO18: 1 | GR18: Each week | GS18: received | GT18: . | GV18: Find the total of | GY18: .
A19: 16 | B19: 16) | C19: 0 | E19: Paula did her science homework this week. | F19: Her homework took 39, 47 and 23 minutes. | G19: Find the total time Paula studied this week. | H19: 109 minutes | K19: Paula participated in her age group in the shot-put throwing. | L19: Her distances were 13, 2 and 8 metres. | M19: Find the average result Paula recorded. | N19: 8 metres | Q19: Find nine tenths of 1260 boys | T19: 1134 boys | W19: Paula rode a bike five days each week. | X19: Each day she rode 4 km . | Y19: Find the total distance ridden by Paula each week. | Z19: 20km | AC19: 55 | AD19: 6 | AE19: 3 | AF19: 28 | AG19: Paula | AH19: she | AI19: did | AJ19: her | AK19: science homework this week. | AL19: Her | AM19: homework took | AN19: 39 | AO19: , 47 | AR19: and 23 | AS19: minutes | AU19: minutes | AV19: . | AW19: Find the total | AX19: time | AZ19: studied this week | BA19: . | BC19: Paula did her science homework this week. | BD19: Her homework took 39, 47 and 23 minutes. | BE19: Find the total time Paula studied this week. | BF19: 109 minutes | BH19: 140 | BI19: 140 laps | BJ19: Steve | BK19: his | BL19: His | BM19: he | BN19: trained at | BO19: local pool for the 50m freestyle. | BS19: 40 | BT19: 20 | BU19: 40 | BV19: 40 | BW19: 30 | BX19: =IF(BT19<30,0,BT19-10) -> 0 | BY19: 30 | BZ19: 40 | CA19: laps | CB19: daily training was | CC19: . | CD19: number | CJ19: 2 | CK19: 3 | CL19: 4 | CM19: 14 | CN19: participated in | CO19: age group in the shot-put throwing. | CP19: distances were | CQ19: 13 | CT19: , 2 | CU19: and 8 | CV19: metres | CW19: earned | CX19: . | CY19: Find the average | CZ19: result | DC19: recorded | DD19: . | DF19: Paula participated in her age group in the shot-put throwing. | DG19: Her distances were 13, 2 and 8 metres. | DH19: Find the average result Paula recorded. | DI19: 8 metres | DJ19: . | DK19: 30 | DL19: 30 | DM19: 30 seconds | DN19: swam in | DO19: age group in the 50m freestyle. | DS19: =INT(20*RAND()+30) -> 36 | DT19: =INT(20*RAND()+30) -> 38 | DU19: =INT(20*RAND()+30) -> 43 | DV19: =INT(20*RAND()+30) -> 33 | DW19: =IF(DS19<35,0,DS19-10) -> 26 | DX19: =IF(DT19<35,0,DT19-10) -> 28 | DY19: =IF(DU19<35,0,DU19-10) -> 33 | DZ19: 120 | EA19: 4 | EB19: 30 | EC19: 0 | ED19: 30 | EE19: seconds | EF19: times were | EG19: earned | EH19: . | EI19: time | EO19: 14 | EP19: 17 | EQ19: 13 | ER19: 6 | ES19: 1260 | ET19: Find | EU19: nine tenths | EW19: boys | EX19: 1134 | FA19: seven tenths | FB19: 10 | FC19: 7 | FE19: apples | FG19: 3 | FH19: 1 | FI19: 3 | FJ19: 3 | FK19: rode a bike | FL19: five days each week. | FM19: Each day | FN19: rode | FP19: 4 | FQ19: km | FR19: . | FS19: Find the total distance | FT19: ridden | FU19: by | FW19: each week | FX19: . | FZ19: Paula rode a bike five days each week. | GA19: Each day she rode 4 km . | GB19: Find the total distance ridden by Paula each week. | GC19: 20km | GE19: 6240 | GF19: 6240 | GG19: $6240 | GH19: worked | GI19: twice a week. | GJ19: 104 | GM19: $ | GN19: =INT(50*RAND()+50) -> 60 | GO19: 1 | GR19: Each day | GS19: earned | GT19: . | GV19: Find the total of | GY19: .
A20: 17 | B20: 17) | C20: 0 | E20: Janet rode her bike to different work sites. | F20: Her distances were 33, 36, 47 and 35 kilometres. | G20: Find the total distance Janet drove to work. | H20: 151 kilometres | K20: Janet held her breath while underwater. | L20: Her times were 41, 34 and 44 seconds. | M20: Find the average time Janet stayed underwater. | N20: 44 seconds | Q20: Find nine tenths of 1080 cents | T20: 972 cents | W20: Janet drove to and from work 6 days each week. | X20: Each day she drove 18km each way . | Y20: Find the distance driven by Janet each week. | Z20: 216km | AC20: 66 | AD20: 8 | AE20: 4 | AF20: 39 | AG20: Janet | AH20: she | AI20: rode | AJ20: her | AK20: bike to different work sites. | AL20: Her | AM20: distances were | AN20: 33 | AO20: , 36 | AP20: , 47 | AR20: and 35 | AS20: kilometres | AU20: kilometres | AV20: . | AW20: Find the total | AX20: distance | AZ20: drove to work | BA20: . | BC20: Janet rode her bike to different work sites. | BD20: Her distances were 33, 36, 47 and 35 kilometres. | BE20: Find the total distance Janet drove to work. | BF20: 151 kilometres | BH20: 120 | BI20: 120 laps | BJ20: Trung | BK20: his | BL20: His | BM20: he | BN20: trained at | BO20: local pool for the 100m freestyle. | BS20: 30 | BT20: 20 | BU20: 30 | BV20: 40 | BW20: 20 | BX20: 0 | BY20: 20 | BZ20: 40 | CA20: laps | CB20: daily training was | CC20: . | CD20: number | CJ20: 6 | CK20: 5 | CL20: 5 | CM20: 25 | CN20: held | CO20: breath while underwater. | CP20: times were | CQ20: 41 | CT20: , 34 | CU20: and 44 | CV20: seconds | CW20: paid | CX20: . | CY20: Find the average | CZ20: time | DC20: stayed underwater | DD20: . | DF20: Janet held her breath while underwater. | DG20: Her times were 41, 34 and 44 seconds. | DH20: Find the average time Janet stayed underwater. | DI20: 44 seconds | DJ20: . | DK20: 92 | DL20: 92 | DM20: 92 seconds | DN20: swam in | DO20: age group in the 100m freestyle. | DS20: =INT(40*RAND()+70) -> 87 | DT20: =INT(40*RAND()+70) -> 100 | DU20: =INT(40*RAND()+70) -> 81 | DV20: =INT(40*RAND()+70) -> 109 | DW20: =IF(DS20<85,0,DS20-10) -> 77 | DX20: =IF(DT20<85,0,DT20-10) -> 90 | DY20: =IF(DU20<85,0,DU20-10) -> 0 | DZ20: 276 | EA20: 3 | EB20: 92 | EC20: 0 | ED20: 92 | EE20: seconds | EF20: times were | EG20: earned | EH20: . | EI20: time | EO20: 12 | EP20: 17 | EQ20: 3 | ER20: 9 | ES20: 1080 | ET20: Find | EU20: nine tenths | EW20: cents | EX20: 972 | FA20: nine tenths | FB20: 10 | FC20: 9 | FE20: days | FG20: 39 | FH20: 8 | FI20: 2 | FJ20: 37 | FK20: drove to and from work | FL20: 6 days each week. | FM20: Each day | FN20: drove | FP20: 18 | FQ20: km each way | FR20: . | FS20: Find the distance | FT20: driven | FU20: by | FW20: each week | FX20: . | FZ20: Janet drove to and from work 6 days each week. | GA20: Each day she drove 18km each way . | GB20: Find the distance driven by Janet each week. | GC20: 216km | GE20: 22880 | GF20: 22880 | GG20: $22880 | GH20: worked | GI20: four days each week. | GJ20: 208 | GM20: $ | GN20: =INT(50*RAND()+100) -> 110 | GO20: 1 | GR20: Each day | GS20: earned | GT20: . | GV20: Find the total of | GY20: .
A21: 18 | B21: 18) | C21: 0 | E21: Jill posted her birthday party invitations on different days. | F21: Her mailing included 34, 34, 43, 32 and 35 invitations. | G21: Find the total number Jill posted. | H21: 178 invitations | K21: Jill participated in her age group in the javelin throwing. | L21: Her distances were 69, 51, 27, 15 and 27 metres. | M21: Find the average result Jill recorded. | N21: 28 metres | Q21: Find an eight of 112 girls | T21: 14 girls | W21: Jill paid 50c for the stamps on each letter. | X21: On each of 5 work days she posted 11 letters. | Y21: Find the total cost of Jill's postage each week. | Z21: $27.50 | AC21: 64 | AD21: 9 | AE21: 5 | AF21: 45 | AG21: Jill | AH21: she | AI21: posted | AJ21: her | AK21: birthday party invitations on different days. | AL21: Her | AM21: mailing included | AN21: 34 | AO21: , 34 | AP21: , 43 | AQ21: , 32 | AR21: and 35 | AS21: invitations | AU21: invitations | AV21: . | AW21: Find the total | AX21: number | AZ21: posted | BA21: . | BC21: Jill posted her birthday party invitations on different days. | BD21: Her mailing included 34, 34, 43, 32 and 35 invitations. | BE21: Find the total number Jill posted. | BF21: 178 invitations | BH21: 100 | BI21: 100 laps | BJ21: Sam | BK21: his | BL21: His | BM21: he | BN21: trained at | BO21: local pool for the 200m freestyle. | BS21: 20 | BT21: 30 | BU21: 30 | BV21: 40 | BW21: 0 | BX21: 20 | BY21: 20 | BZ21: 20 | CA21: laps | CB21: daily training was | CC21: . | CD21: number | CH21: . | CJ21: 27 | CK21: 3 | CL21: 3 | CM21: 13 | CN21: participated in | CO21: age group in the javelin throwing. | CP21: distances were | CQ21: 69 | CR21: , 51 | CS21: , 27 | CT21: , 15 | CU21: and 27 | CV21: metres | CW21: received | CX21: . | CY21: Find the average | CZ21: result | DC21: recorded | DD21: . | DF21: Jill participated in her age group in the javelin throwing. | DG21: Her distances were 69, 51, 27, 15 and 27 metres. | DH21: Find the average result Jill recorded. | DI21: 28 metres | DJ21: . | DK21: 168 | DL21: 168 | DM21: 168 seconds | DN21: swam in | DO21: age group in the 200m freestyle. | DS21: =INT(40*RAND()+130) -> 159 | DT21: =INT(40*RAND()+160) -> 168 | DU21: =INT(40*RAND()+160) -> 199 | DV21: =INT(40*RAND()+160) -> 178 | DW21: =IF(DS21<155,0,DS21-10) -> 149 | DX21: =IF(DT21<155,0,DT21-10) -> 158 | DY21: =IF(DU21<155,0,DU21-10) -> 189 | DZ21: 674 | EA21: 4 | EB21: 168 | EC21: 2 | ED21: 166 | EE21: seconds | EF21: times were | EG21: earned | EH21: . | EI21: time | EM21: . | EO21: 14 | EP21: 6 | EQ21: 14 | ER21: 1 | ES21: 112 | ET21: Find | EU21: an eight | EW21: girls | EX21: 14 | FE21: hours | FG21: 25 | FH21: 9 | FI21: 5 | FJ21: 45 | FK21: paid 50c for the stamps | FL21: on each letter. | FM21: On each of 5 work days | FN21: posted | FP21: 11 | FQ21: letters | FR21: . | FS21: Find the total cost of | FV21: 's postage | FW21: each week | FX21: . | FZ21: Jill paid 50c for the stamps on each letter. | GA21: On each of 5 work days she posted 11 letters. | GB21: Find the total cost of Jill's postage each week. | GC21: $27.50 | GE21: 51740 | GF21: 51740 | GG21: $51740 | GH21: worked | GI21: five days each week. | GJ21: 260 | GM21: $ | GN21: =INT(50*RAND()+150) -> 199 | GO21: 1 | GR21: Each day | GS21: earned | GT21: . | GY21: .
A22: 19 | B22: 19) | C22: 0 | E22: Terri played cricket for her local team. | F22: Her scores were 47, 12, 29 and 30 runs. | G22: Find the total score Terri achieved. | H22: 118 runs | K22: Terri rode her motorbike to different work sites. | L22: Her distances were 23, 21, 26 and 21 kilometres. | M22: Find the average distance Terri drove to work. | N22: 22 kilometres | Q22: Find three tenths of 540 girls | T22: 162 girls | W22: Terri was given pocket money each week. | X22: Each week she received $4. | Y22: Find the total of Terri's pocket money each year. | Z22: $208 | AC22: 58 | AD22: 1 | AE22: 1 | AF22: 1 | AG22: Terri | AH22: she | AI22: played cricket for | AJ22: her | AK22: local team. | AL22: Her | AM22: scores were | AN22: 47 | AO22: , 12 | AP22: , 29 | AR22: and 30 | AS22: runs | AU22: runs | AV22: . | AW22: Find the total | AX22: score | AZ22: achieved | BA22: . | BC22: Terri played cricket for her local team. | BD22: Her scores were 47, 12, 29 and 30 runs. | BE22: Find the total score Terri achieved. | BF22: 118 runs | BH22: 100 | BI22: 100 laps | BJ22: Victor | BK22: his | BL22: His | BM22: he | BN22: trained at | BO22: local pool for the 50m backstroke. | BS22: 30 | BT22: 20 | BU22: 40 | BV22: 30 | BW22: 20 | BX22: 0 | BY22: 30 | BZ22: 20 | CA22: laps | CB22: daily training was | CC22: . | CD22: number | CH22: . | CJ22: 38 | CK22: 8 | CL22: 2 | CM22: 37 | CN22: rode | CO22: motorbike to different work sites. | CP22: distances were | CQ22: 23 | CS22: , 21 | CT22: , 26 | CU22: and 21 | CV22: kilometres | CW22: rode | CX22: . | CY22: Find the average | CZ22: distance | DC22: drove to work | DD22: . | DF22: Terri rode her motorbike to different work sites. | DG22: Her distances were 23, 21, 26 and 21 kilometres. | DH22: Find the average distance Terri drove to work. | DI22: 22 kilometres | DJ22: . | DK22: 33 | DL22: 33 | DM22: 33 seconds | DN22: swam in | DO22: age group in the 50m backstroke. | DS22: =INT(15*RAND()+35) -> 42 | DT22: 41 | DU22: 41 | DV22: 38 | DW22: =IF(DS22<41,0,DS22-10) -> 32 | DX22: 31 | DY22: 31 | DZ22: 132 | EA22: 4 | EB22: 33 | EC22: 0 | ED22: 33 | EE22: seconds | EF22: times were | EG22: earned | EH22: . | EI22: time | EM22: . | EO22: 18 | EP22: 15 | EQ22: 14 | ER22: 2 | ES22: 540 | ET22: Find | EU22: three tenths | EW22: girls | EX22: 162 | FE22: minutes | FG22: 14 | FH22: 3 | FI22: 1 | FJ22: 11 | FK22: was given | FL22: pocket money each week. | FM22: Each week | FN22: received | FO22: $ | FP22: 4 | FR22: . | FS22: Find the total of | FV22: 's pocket money | FW22: each year | FX22: . | FZ22: Terri was given pocket money each week. | GA22: Each week she received $4. | GB22: Find the total of Terri's pocket money each year. | GC22: $208 | GE22: 73320 | GF22: 73320 | GG22: $73320 | GH22: worked | GI22: six days each week. | GJ22: 312 | GM22: $ | GN22: =INT(50*RAND()+200) -> 235 | GO22: 1 | GR22: Each day | GS22: earned | GT22: . | GY22: .
A23: 20 | B23: 20) | C23: 0 | E23: Harry played touch football for his school team. | F23: His scores were 5, 8 and 5 points. | G23: Find the total score Harry achieved. | H23: 18 points | K23: Harry earned his money working in a shop. | L23: His payments were $28, $20, $23 and $23. | M23: Find the average price Harry earned. | N23: $23 | Q23: =CONCATENATE(ET23,EU23," of ",ES23,EW23) -> Find five eights of 800g | T23: =CONCATENATE(EX23,EW23) -> 500g | W23: Harry paid the mortgage every 4 weeks. | X23: Each time he paid $420. | Y23: Find the total of Harry's mortgage each year. | Z23: $5460 | AC23: 8 | AD23: 1 | AE23: 3 | AF23: 3 | AG23: Harry | AH23: he | AI23: played touch football for | AJ23: his | AK23: school team. | AL23: His | AM23: scores were | AN23: 5 | AP23: , 8 | AR23: and 5 | AS23: points | AU23: points | AV23: . | AW23: Find the total | AX23: score | AZ23: achieved | BA23: . | BC23: Harry played touch football for his school team. | BD23: His scores were 5, 8 and 5 points. | BE23: Find the total score Harry achieved. | BF23: 18 points | BH23: 140 | BI23: 140 laps | BJ23: Will | BK23: his | BL23: His | BM23: he | BN23: trained at | BO23: local pool for the 50m butterfly. | BS23: 30 | BT23: 40 | BU23: 40 | BV23: 30 | BW23: 20 | BX23: 30 | BY23: 30 | BZ23: 30 | CA23: laps | CB23: daily training was | CC23: . | CD23: number | CH23: . | CJ23: 30 | CK23: 7 | CL23: 3 | CM23: 33 | CN23: earned | CO23: money working in a shop. | CP23: payments were | CQ23: $28 | CR23: , $20 | CS23: , $23 | CU23: and $23 | CW23: 's shrub grew | CX23: . | CY23: =OFFSET($EJ$4,(CK23-1),0) -> Find the average | CZ23: =OFFSET($EI$4,(CK23-1),0) -> price | DA23: =IF(OFFSET($EK$4,(CM23-1),0)="","",OFFSET($EK$4,(CM23-1),0)) ->  | DB23: =IF(OFFSET($EL$4,(CK23-1),0)="","",OFFSET($EL$4,(CK23-1),0)) ->  | DC23: =OFFSET($DQ$4,(CK23-1),0) -> earned | DD23: =IF(OFFSET($EM$4,(CK23-1),0)="","",OFFSET($EM$4,(CK23-1),0)) -> . | DF23: Harry earned his money working in a shop. | DG23: His payments were $28, $20, $23 and $23. | DH23: Find the average price Harry earned. | DI23: $23 | DJ23: . | DK23: 36 | DL23: 36 | DM23: 36 seconds | DN23: swam in | DO23: age group in the 50m butterfly. | DS23: 44 | DT23: 46 | DU23: 48 | DV23: 36 | DW23: 34 | DX23: 36 | DY23: 38 | DZ23: 144 | EA23: 4 | EB23: 36 | EC23: 0 | ED23: 36 | EE23: seconds | EF23: times were | EG23: earned | EH23: . | EI23: time | EM23: . | EO23: 20 | EP23: 13 | EQ23: 7 | ER23: 2 | ES23: 800 | ET23: Find | EU23: five eights | EW23: g | EX23: 500 | FE23: years | FG23: 22 | FH23: 6 | FI23: 5 | FJ23: 30 | FK23: paid the mortgage | FL23: every 4 weeks. | FM23: Each time | FN23: paid | FO23: $ | FP23: 420 | FR23: . | FS23: Find the total of | FV23: 's mortgage | FW23: each year | FX23: . | FZ23: Harry paid the mortgage every 4 weeks. | GA23: Each time he paid $420. | GB23: Find the total of Harry's mortgage each year. | GC23: $5460 | GE23: 95732 | GF23: 95732 | GG23: $95732 | GH23: worked | GI23: seven days each week. | GJ23: 364 | GM23: $ | GN23: =INT(50*RAND()+250) -> 263 | GO23: 1 | GR23: Each day | GS23: earned | GT23: . | GY23: .
BH24: 110 | BI24: 110 seconds | BJ24: Bob | BK24: his | BL24: His | BM24: he | BN24: held | BO24: breath while underwater. | BS24: 27 | BT24: 23 | BU24: 47 | BV24: 38 | BW24: =IF(BS24<30,0,BS24-2) -> 0 | BX24: 0 | BY24: 45 | BZ24: 27 | CA24: seconds | CB24: times were | CC24: . | CD24: time | DK24: 55 | DL24: 55 | DM24: 55 seconds | DN24: held | DO24: breath while underwater. | DS24: =INT(20*RAND()+40) -> 42 | DT24: =INT(20*RAND()+40) -> 40 | DU24: =INT(20*RAND()+40) -> 43 | DV24: =INT(20*RAND()+40) -> 54 | DW24: =IF(DS24<48,0,DS24-18) -> 0 | DX24: 0 | DY24: 0 | DZ24: 54 | EA24: 1 | EB24: 54 | EC24: 0 | ED24: 56 | EE24: seconds | EF24: times were | EG24: paid | EH24: . | EI24: time | GE24: 13520 | GF24: 13520 | GG24: $13520 | GH24: paid rent | GI24: each week. | GJ24: 52 | GM24: $ | GN24: =10*INT(5*RAND()+25) -> 260 | GO24: 1 | GR24: Each week | GS24: paid | GT24: .
BH25: 158 | BI25: 158 seconds | BJ25: Tom | BK25: his | BL25: His | BM25: he | BN25: held | BO25: breath while underwater. | BS25: 38 | BT25: 37 | BU25: 36 | BV25: 25 | BW25: 36 | BX25: 35 | BY25: 34 | BZ25: 28 | CA25: seconds | CB25: times were | CC25: . | CD25: time | DK25: 43 | DL25: 43 | DM25: 43 seconds | DN25: held | DO25: breath while underwater. | DS25: =INT(20*RAND()+40) -> 56 | DT25: 54 | DU25: 44 | DV25: 55 | DW25: 38 | DX25: 36 | DY25: 0 | DZ25: 129 | EA25: 3 | EB25: 43 | EC25: 0 | ED25: 43 | EE25: seconds | EF25: times were | EG25: paid | EH25: . | EI25: time | GE25: 14820 | GF25: 14820 | GG25: $14820 | GH25: paid rent | GI25: each fortnight. | GJ25: 26 | GM25: $ | GN25: =10*INT(10*RAND()+50) -> 570 | GO25: 1 | GR25: Each fortnight | GS25: paid | GT25: .
BH26: 98 | BI26: 98 seconds | BJ26: John | BK26: his | BL26: His | BM26: he | BN26: held | BO26: breath while underwater. | BS26: 21 | BT26: 23 | BU26: 42 | BV26: 22 | BW26: 0 | BX26: 0 | BY26: 40 | BZ26: 36 | CA26: seconds | CB26: times were | CC26: . | CD26: time | DK26: 34 | DL26: 34 | DM26: 34 seconds | DN26: held | DO26: breath while underwater. | DS26: 46 | DT26: 49 | DU26: 49 | DV26: 40 | DW26: 0 | DX26: 31 | DY26: 31 | DZ26: 102 | EA26: 3 | EB26: 34 | EC26: 0 | ED26: 34 | EE26: seconds | EF26: times were | EG26: paid | EH26: . | EI26: time | GE26: 12000 | GF26: 12000 | GG26: $12000 | GH26: paid rent | GI26: each month. | GJ26: 12 | GM26: $ | GN26: =10*INT(20*RAND()+100) -> 1000 | GO26: 1 | GR26: Each month | GS26: paid | GT26: .
BH27: 180 | BI27: 180 seconds | BJ27: Phil | BK27: his | BL27: His | BM27: he | BN27: held | BO27: breath while underwater. | BS27: 41 | BT27: 47 | BU27: 37 | BV27: 31 | BW27: 39 | BX27: 45 | BY27: 35 | BZ27: 30 | CA27: seconds | CB27: times were | CC27: . | CD27: time | DK27: 39 | DL27: 39 | DM27: 39 seconds | DN27: held | DO27: breath while underwater. | DS27: 57 | DT27: 46 | DU27: 44 | DV27: 40 | DW27: 39 | DX27: 0 | DY27: 0 | DZ27: 79 | EA27: 2 | EB27: 39 | EC27: 1 | ED27: 38 | EE27: seconds | EF27: times were | EG27: paid | EH27: . | EI27: time | GE27: 10400 | GF27: 10400 | GG27: $10400 | GH27: paid rent | GI27: each pay day. | GJ27: 52 | GM27: $ | GN27: =10*INT(5*RAND()+20) -> 200 | GO27: 1 | GR27: Each week | GS27: paid | GT27: .
BH28: 194 | BI28: 194 seconds | BJ28: Jan | BK28: his | BL28: His | BM28: he | BN28: held | BO28: breath while underwater. | BS28: 42 | BT28: 48 | BU28: 41 | BV28: 27 | BW28: 40 | BX28: 46 | BY28: 39 | BZ28: 42 | CA28: seconds | CB28: times were | CC28: . | CD28: time | DK28: 44 | DL28: 44 | DM28: 44 seconds | DN28: held | DO28: breath while underwater. | DS28: 41 | DT28: 44 | DU28: 52 | DV28: 54 | DW28: 0 | DX28: 0 | DY28: 34 | DZ28: 88 | EA28: 2 | EB28: 44 | EC28: 0 | ED28: 44 | EE28: seconds | EF28: times were | EG28: paid | EH28: . | EI28: time | GE28: 10400 | GF28: 10400 | GG28: $10400 | GH28: paid rent | GI28: every 4 weeks. | GJ28: 13 | GM28: $ | GN28: =10*INT(4*RAND()+80) -> 800 | GO28: 1 | GR28: Each time | GS28: paid | GT28: .
BH29: 163 | BI29: 163 minutes | BJ29: Sean | BK29: his | BL29: His | BM29: he | BN29: did | BO29: maths homework this week. | BS29: 40 | BT29: 34 | BU29: 25 | BV29: 44 | BW29: 38 | BX29: 32 | BY29: 0 | BZ29: 49 | CA29: minutes | CB29: homework took | CC29: . | CD29: time | DK29: 40 | DL29: 40 | DM29: 40 minutes | DN29: did | DO29: maths homework this week. | DS29: 59 | DT29: 57 | DU29: 47 | DV29: 42 | DW29: 41 | DX29: 39 | DY29: 0 | DZ29: 122 | EA29: 3 | EB29: 40 | EC29: 2 | ED29: 38 | EE29: minutes | EF29: homework took | EG29: paid | EH29: . | EI29: time | GE29: 17160 | GF29: 17160 | GG29: $17160 | GH29: paid the mortgage | GI29: each week. | GJ29: 52 | GM29: $ | GN29: =10*INT(6*RAND()+30) -> 330 | GO29: 1 | GR29: Each week | GS29: paid | GT29: .
BH30: 137 | BI30: 137 minutes | BJ30: Stan | BK30: his | BL30: His | BM30: he | BN30: did | BO30: English homework this week. | BS30: 29 | BT30: 33 | BU30: 47 | BV30: 29 | BW30: 0 | BX30: 31 | BY30: 45 | BZ30: 32 | CA30: minutes | CB30: homework took | CC30: . | CD30: time | DK30: 40 | DL30: 40 | DM30: 40 minutes | DN30: did | DO30: English homework this week. | DS30: 55 | DT30: 46 | DU30: 43 | DV30: 44 | DW30: 37 | DX30: 0 | DY30: 0 | DZ30: 81 | EA30: 2 | EB30: 40 | EC30: 1 | ED30: 39 | EE30: minutes | EF30: homework took | EG30: paid | EH30: . | EI30: time | GE30: 16120 | GF30: 16120 | GG30: $16120 | GH30: paid the mortgage | GI30: each fortnight. | GJ30: 26 | GM30: $ | GN30: =10*INT(7*RAND()+60) -> 620 | GO30: 1 | GR30: Each fortnight | GS30: paid | GT30: .
BH31: 109 | BI31: 109 minutes | BJ31: Jack | BK31: his | BL31: His | BM31: he | BN31: did | BO31: science homework this week. | BS31: 49 | BT31: 24 | BU31: 27 | BV31: 39 | BW31: 47 | BX31: 0 | BY31: 0 | BZ31: 23 | CA31: minutes | CB31: homework took | CC31: . | CD31: time | DK31: 42 | DL31: 42 | DM31: 42 minutes | DN31: did | DO31: science homework this week. | DS31: 49 | DT31: 56 | DU31: 41 | DV31: 57 | DW31: 31 | DX31: 38 | DY31: 0 | DZ31: 126 | EA31: 3 | EB31: 42 | EC31: 0 | ED31: 42 | EE31: minutes | EF31: homework took | EG31: paid | EH31: . | EI31: time | GE31: 13320 | GF31: 13320 | GG31: $13320 | GH31: paid the mortgage | GI31: each month. | GJ31: 12 | GM31: $ | GN31: =10*INT(5*RAND()+110) -> 1110 | GO31: 1 | GR31: Each month | GS31: paid | GT31: .
BH32: 90 | BI32: 90 minutes | BJ32: Don | BK32: his | BL32: His | BM32: he | BN32: did | BO32: history homework this week. | BS32: 37 | BT32: 21 | BU32: 21 | BV32: 25 | BW32: 35 | BX32: 0 | BY32: 0 | BZ32: 30 | CA32: minutes | CB32: homework took | CC32: . | CD32: time | DK32: 39 | DL32: 39 | DM32: 39 minutes | DN32: did | DO32: history homework this week. | DS32: 57 | DT32: 40 | DU32: 49 | DV32: 49 | DW32: 39 | DX32: 0 | DY32: 31 | DZ32: 119 | EA32: 3 | EB32: 39 | EC32: 2 | ED32: 37 | EE32: minutes | EF32: homework took | EG32: paid | EH32: . | EI32: time | GE32: 24960 | GF32: 24960 | GG32: $24960 | GH32: paid the mortgage | GI32: each pay day. | GJ32: 52 | GM32: $ | GN32: =10*INT(5*RAND()+45) -> 480 | GO32: 1 | GR32: Each week | GS32: paid | GT32: .
BH33: 110 | BI33: 110 minutes | BJ33: Ivan | BK33: his | BL33: His | BM33: he | BN33: did | BO33: art homework this week. | BS33: 26 | BT33: 40 | BU33: 29 | BV33: 35 | BW33: 0 | BX33: 38 | BY33: 0 | BZ33: 37 | CA33: minutes | CB33: homework took | CC33: . | CD33: time | DK33: 37 | DL33: 37 | DM33: 37 minutes | DN33: did | DO33: art homework this week. | DS33: 50 | DT33: 52 | DU33: 52 | DV33: 51 | DW33: 32 | DX33: 34 | DY33: 34 | DZ33: 151 | EA33: 4 | EB33: 37 | EC33: 3 | ED33: 34 | EE33: minutes | EF33: homework took | EG33: paid | EH33: . | EI33: time | GE33: 5460 | GF33: 5460 | GG33: $5460 | GH33: paid the mortgage | GI33: every 4 weeks. | GJ33: 13 | GM33: $ | GN33: =10*INT(5*RAND()+40) -> 420 | GO33: 1 | GR33: Each time | GS33: paid | GT33: .
BH34: 99 | BI34: $99 | BJ34: Boris | BK34: his | BL34: His | BM34: he | BN34: earned | BO34: money mowing lawns. | BR34: $ | BS34: 27 | BT34: 47 | BU34: 27 | BV34: 34 | BW34: 0 | BX34: 45 | BY34: 0 | BZ34: 20 | CB34: payments were | CC34: . | CD34: income | DK34: 30 | DL34: 30 | DM34: $30 | DN34: earned | DO34: money mowing lawns. | DR34: $ | DS34: =INT(20*RAND()+20) -> 37 | DT34: =INT(20*RAND()+20) -> 26 | DU34: =INT(20*RAND()+20) -> 36 | DV34: =INT(20*RAND()+20) -> 34 | DW34: =IF(DS34<28,0,DS34-8) -> 29 | DX34: =IF(DT34<28,0,DT34-8) -> 0 | DY34: 28 | DZ34: 91 | EA34: 3 | EB34: 30 | EC34: 1 | ED34: 29 | EF34: payments were | EG34: ="'s plant grew " -> 's plant grew | EH34: . | EI34: income | GE34: 62 | GF34: 62 | GG34: 62cm | GH34: ="'s plant was planted " -> 's plant was planted | GI34: when it was 10cm tall. | GJ34: 52 | GK34: 10 | GN34: =INT(5*RAND()+1) -> 1 | GO34: 1 | GP34: cm | GQ34: cm | GR34: Each week | GS34: ="'s plant grew " -> 's plant grew | GT34: .
BH35: 159 | BI35: $159 | BJ35: Jim | BK35: his | BL35: His | BM35: he | BN35: earned | BO35: money baby sitting. | BR35: $ | BS35: 35 | BT35: 30 | BU35: 41 | BV35: 31 | BW35: 33 | BX35: 28 | BY35: 39 | BZ35: 28 | CB35: payments were | CC35: . | CD35: income | DK35: 33 | DL35: 33 | DM35: $33 | DN35: earned | DO35: money baby sitting. | DR35: $ | DS35: =INT(20*RAND()+20) -> 20 | DT35: 27 | DU35: 24 | DV35: 32 | DW35: =IF(DS35<28,0,DS35-8) -> 0 | DX35: 0 | DY35: 0 | DZ35: 32 | EA35: 1 | EB35: 32 | EC35: 0 | ED35: 34 | EF35: payments were | EG35: ="'s tree grew " -> 's tree grew | EH35: . | EI35: income | GE35: 324 | GF35: 324 | GG35: 324cm | GH35: ="'s tree was planted " -> 's tree was planted | GI35: when it was 90cm tall. | GJ35: 26 | GK35: 90 | GN35: =INT(5*RAND()+5) -> 9 | GO35: 1 | GP35: cm | GQ35: cm | GR35: Each fortnight | GS35: ="'s tree grew " -> 's tree grew | GT35: .
BH36: 197 | BI36: $197 | BJ36: Hugo | BK36: his | BL36: His | BM36: he | BN36: earned | BO36: money working in a shop. | BR36: $ | BS36: 43 | BT36: 37 | BU36: 33 | BV36: 44 | BW36: 41 | BX36: 35 | BY36: 31 | BZ36: 46 | CB36: payments were | CC36: . | CD36: income | DK36: 23 | DL36: 23 | DM36: $23 | DN36: earned | DO36: money working in a shop. | DR36: $ | DS36: 28 | DT36: 31 | DU36: 27 | DV36: 26 | DW36: =IF(DS36<28,0,DS36-8) -> 20 | DX36: 23 | DY36: 0 | DZ36: 69 | EA36: 3 | EB36: 23 | EC36: 0 | ED36: 23 | EF36: payments were | EG36: ="'s shrub grew " -> 's shrub grew | EH36: . | EI36: income | GE36: 158 | GF36: 158 | GG36: 158cm | GH36: ="'s shrub was planted " -> 's shrub was planted | GI36: when it was 50cm tall. | GJ36: 12 | GK36: 50 | GN36: =INT(50*RAND()+5) -> 9 | GO36: 1 | GP36: cm | GQ36: cm | GR36: Each month | GS36: ="'s shrub grew " -> 's shrub grew | GT36: .
BH37: 185 | BI37: $185 | BJ37: Pat | BK37: his | BL37: His | BM37: he | BN37: earned | BO37: money delivering newspapers. | BR37: $ | BS37: 41 | BT37: 39 | BU37: 40 | BV37: 49 | BW37: 39 | BX37: 37 | BY37: 38 | BZ37: 22 | CB37: payments were | CC37: . | CD37: income | DK37: 23 | DL37: 23 | DM37: $23 | DN37: earned | DO37: money delivering newspapers. | DR37: $ | DS37: 29 | DT37: 32 | DU37: 32 | DV37: 23 | DW37: =IF(DS37<28,0,DS37-8) -> 21 | DX37: 24 | DY37: 24 | DZ37: 92 | EA37: 4 | EB37: 23 | EC37: 0 | ED37: 23 | EF37: payments were | EG37: ="'s flower grew " -> 's flower grew | EH37: . | EI37: income | GE37: 176 | GF37: 176 | GG37: 176cm | GH37: ="'s flowering plant was planted " -> 's flowering plant was planted | GI37: when it was 20cm tall. | GJ37: 52 | GK37: 20 | GN37: =INT(5*RAND()+1) -> 3 | GO37: 1 | GP37: cm | GQ37: cm | GR37: Each week | GS37: ="'s flower grew " -> 's flower grew | GT37: .
BH38: 121 | BI38: $121 | BJ38: Paula | BK38: his | BL38: His | BM38: he | BN38: earned | BO38: money doing gardening. | BR38: $ | BS38: 43 | BT38: 23 | BU38: 20 | BV38: 37 | BW38: 41 | BX38: 0 | BY38: 0 | BZ38: 43 | CB38: payments were | CC38: . | CD38: income | DK38: 25 | DL38: 25 | DM38: $25 | DN38: earned | DO38: money doing gardening. | DR38: $ | DS38: 22 | DT38: 33 | DU38: 26 | DV38: 26 | DW38: =IF(DS38<28,0,DS38-8) -> 0 | DX38: 25 | DY38: 0 | DZ38: 51 | EA38: 2 | EB38: 25 | EC38: 1 | ED38: 24 | EF38: payments were | EG38: ="'s apple tree grew " -> 's apple tree grew | EH38: . | EI38: income | GE38: 606 | GF38: 606 | GG38: 606cm | GH38: ="'s apple tree was planted " -> 's apple tree was planted | GI38: when it was 30cm tall. | GJ38: 12 | GK38: 30 | GN38: =INT(25*RAND()+25) -> 48 | GO38: 1 | GP38: cm | GQ38: cm | GR38: Each month | GS38: ="'s apple tree grew " -> 's apple tree grew | GT38: .
BH39: 166 | BI39: 166 kilometres | BJ39: Alexi | BK39: his | BL39: His | BM39: he | BN39: drove | BO39: car to different work sites. | BS39: 27 | BT39: 46 | BU39: 48 | BV39: 31 | BW39: 0 | BX39: 44 | BY39: 46 | BZ39: 45 | CA39: kilometres | CB39: distances were | CC39: . | CD39: distance | DK39: 30 | DL39: 30 | DM39: 30 kilometres | DN39: drove | DO39: car to different work sites. | DS39: 38 | DT39: 33 | DU39: 36 | DV39: 38 | DW39: =IF(DS39<28,0,DS39-8) -> 30 | DX39: 25 | DY39: 28 | DZ39: 121 | EA39: 4 | EB39: 30 | EC39: 1 | ED39: 29 | EE39: kilometres | EF39: distances were | EG39: drove | EH39: . | EI39: distance | GE39: 70 | GF39: 70 | GG39: 70km | GH39: drove to and from work | GI39: 5 days each week. | GJ39: 5 | GN39: =INT(5*RAND()+5) -> 7 | GO39: 2 | GP39: km each way | GQ39: km | GR39: Each day | GS39: drove | GT39: . | GU39: driven
BH40: 171 | BI40: 171 kilometres | BJ40: Ben | BK40: his | BL40: His | BM40: he | BN40: rode | BO40: motorbike to different work sites. | BS40: 47 | BT40: 48 | BU40: 29 | BV40: 48 | BW40: 45 | BX40: 46 | BY40: 0 | BZ40: 32 | CA40: kilometres | CB40: distances were | CC40: . | CD40: distance | DK40: 22 | DL40: 22 | DM40: 22 kilometres | DN40: rode | DO40: motorbike to different work sites. | DS40: 23 | DT40: 29 | DU40: 34 | DV40: 20 | DW40: 0 | DX40: 21 | DY40: 26 | DZ40: 67 | EA40: 3 | EB40: 22 | EC40: 1 | ED40: 21 | EE40: kilometres | EF40: distances were | EG40: rode | EH40: . | EI40: distance | GE40: 216 | GF40: 216 | GG40: 216km | GH40: drove to and from work | GI40: 6 days each week. | GJ40: 6 | GN40: =INT(10*RAND()+10) -> 18 | GO40: 2 | GP40: km each way | GQ40: km | GR40: Each day | GS40: drove | GT40: . | GU40: driven
BH41: 190 | BI41: 190 kilometres | BJ41: Athol | BK41: his | BL41: His | BM41: he | BN41: drove | BO41: ute to different work sites. | BS41: 45 | BT41: 48 | BU41: 32 | BV41: 46 | BW41: 43 | BX41: 46 | BY41: 30 | BZ41: 25 | CA41: kilometres | CB41: distances were | CC41: . | CD41: distance | DK41: 24 | DL41: 24 | DM41: 24 kilometres | DN41: drove | DO41: ute to different work sites. | DS41: 29 | DT41: 32 | DU41: 21 | DV41: 29 | DW41: 21 | DX41: 24 | DY41: 0 | DZ41: 74 | EA41: 3 | EB41: 24 | EC41: 2 | ED41: 22 | EE41: kilometres | EF41: distances were | EG41: drove | EH41: . | EI41: distance | GE41: 40 | GF41: 40 | GG41: 40km | GH41: drove to and from work | GI41: 4 days each week. | GJ41: 4 | GN41: =INT(20*RAND()+5) -> 5 | GO41: 2 | GP41: km each way | GQ41: km | GR41: Each day | GS41: drove | GT41: . | GU41: driven
BH42: 151 | BI42: 151 kilometres | BJ42: Fred | BK42: his | BL42: His | BM42: he | BN42: rode | BO42: bike to different work sites. | BS42: 38 | BT42: 49 | BU42: 21 | BV42: 33 | BW42: 36 | BX42: 47 | BY42: 0 | BZ42: 35 | CA42: kilometres | CB42: distances were | CC42: . | CD42: distance | DK42: 8 | DL42: 8 | DM42: 8 kilometres | DN42: rode | DO42: bike to different work sites. | DS42: =INT(10*RAND()+10) -> 16 | DT42: =INT(10*RAND()+10) -> 16 | DU42: =INT(10*RAND()+10) -> 14 | DV42: =INT(10*RAND()+10) -> 13 | DW42: =IF(DS42<12,0,DS42-8) -> 8 | DX42: =IF(DT42<12,0,DT42-8) -> 8 | DY42: =IF(DU42<12,0,DU42-8) -> 6 | DZ42: 35 | EA42: 4 | EB42: 8 | EC42: 3 | ED42: 5 | EE42: kilometres | EF42: distances were | EG42: rode | EH42: . | EI42: distance | GE42: 238 | GF42: 238 | GG42: 238km | GH42: drove to and from work | GI42: 7 days each week. | GJ42: 7 | GN42: =INT(10*RAND()+15) -> 17 | GO42: 2 | GP42: km each way | GQ42: km | GR42: Each day | GS42: drove | GT42: . | GU42: driven
BH43: 103 | BI43: 103 kilometres | BJ43: Liam | BK43: his | BL43: His | BM43: he | BN43: drove | BO43: van to different work sites. | BS43: 27 | BT43: 28 | BU43: 32 | BV43: 35 | BW43: 0 | BX43: 0 | BY43: 30 | BZ43: 38 | CA43: kilometres | CB43: distances were | CC43: . | CD43: distance | DK43: 24 | DL43: 24 | DM43: 24 kilometres | DN43: drove | DO43: van to different work sites. | DS43: 24 | DT43: 37 | DU43: 31 | DV43: 22 | DW43: 0 | DX43: 29 | DY43: 23 | DZ43: 74 | EA43: 3 | EB43: 24 | EC43: 2 | ED43: 22 | EE43: kilometres | EF43: distances were | EG43: drove | EH43: . | EI43: distance | GE43: 198 | GF43: 198 | GG43: 198km | GH43: drove to and from work | GI43: 3 days each week. | GJ43: 3 | GN43: =INT(15*RAND()+20) -> 33 | GO43: 2 | GP43: km each way | GQ43: km | GR43: Each day | GS43: drove | GT43: . | GU43: driven
BH44: 154 | BI44: 154 letters | BJ44: Allison | BK44: her | BL44: Her | BM44: she | BN44: posted | BO44: work's mail. | BS44: 45 | BT44: 21 | BU44: 47 | BV44: 36 | BW44: 43 | BX44: 0 | BY44: 45 | BZ44: 30 | CA44: letters | CB44: mailing included | CC44: . | CD44: number | DK44: 24 | DL44: 24 | DM44: 24 letters | DN44: posted | DO44: work's mail. | DS44: 28 | DT44: 30 | DU44: 22 | DV44: 30 | DW44: 20 | DX44: 22 | DY44: 0 | DZ44: 72 | EA44: 3 | EB44: 24 | EC44: 0 | ED44: 24 | EE44: letters | EF44: mailing included | EG44: posted | EH44: . | EI44: number | GE44: 4000 | GF44: =IF(INT(GE44/100)=GE44/100,CONCATENATE("$",GE44/100),CONCATENATE("$",GE44/100,0)) -> $40 | GG44: $40 | GH44: paid 50c for the stamps | GI44: on each letter. | GJ44: 5 | GN44: =INT(15*RAND()+2) -> 16 | GO44: 50 | GP44: letters | GR44: On each of 5 work days | GS44: posted | GT44: .
BH45: 98 | BI45: 98 cards | BJ45: Betty | BK45: her | BL45: Her | BM45: she | BN45: posted | BO45: Christmas cards on different days. | BS45: 25 | BT45: 20 | BU45: 31 | BV45: 34 | BW45: 0 | BX45: 0 | BY45: 29 | BZ45: 35 | CA45: cards | CB45: mailing included | CC45: . | CD45: number | DK45: 24 | DL45: 24 | DM45: 24 cards | DN45: posted | DO45: Christmas cards on different days. | DS45: 29 | DT45: 28 | DU45: 31 | DV45: 33 | DW45: 21 | DX45: 20 | DY45: 23 | DZ45: 97 | EA45: 4 | EB45: 24 | EC45: 1 | ED45: 23 | EE45: cards | EF45: mailing included | EG45: posted | EH45: . | EI45: number | GE45: 1500 | GF45: =IF(INT(GE45/100)=GE45/100,CONCATENATE("$",GE45/100),CONCATENATE("$",GE45/100,0)) -> $15 | GG45: $15 | GH45: paid 50c for the stamps | GI45: on each letter. | GJ45: 5 | GN45: =INT(10*RAND()+5) -> 6 | GO45: 50 | GP45: letters | GR45: On each of 5 work days | GS45: posted | GT45: .
BH46: 122 | BI46: 122 invitations | BJ46: Carla | BK46: her | BL46: Her | BM46: she | BN46: posted | BO46: engagement party invitations on different days. | BS46: 28 | BT46: 47 | BU46: 22 | BV46: 35 | BW46: 0 | BX46: 45 | BY46: 0 | BZ46: 42 | CA46: invitations | CB46: mailing included | CC46: . | CD46: number | DK46: 25 | DL46: 25 | DM46: 25 invitations | DN46: posted | DO46: engagement party invitations on different days. | DS46: 35 | DT46: 29 | DU46: 36 | DV46: 25 | DW46: 27 | DX46: 21 | DY46: 28 | DZ46: 101 | EA46: 4 | EB46: 25 | EC46: 1 | ED46: 24 | EE46: invitations | EF46: mailing included | EG46: posted | EH46: . | EI46: number | GE46: 19000 | GF46: =IF(INT(GE46/100)=GE46/100,CONCATENATE("$",GE46/100),CONCATENATE("$",GE46/100,0)) -> $190 | GG46: $190 | GH46: paid 50c for the stamps | GI46: on each letter. | GJ46: 5 | GN46: =INT(75*RAND()+25) -> 76 | GO46: 50 | GP46: letters | GR46: On each of 5 work days | GS46: posted | GT46: .
BH47: 130 | BI47: 130 invitations | BJ47: Deb | BK47: her | BL47: Her | BM47: she | BN47: posted | BO47: wedding invitations on different days. | BS47: 22 | BT47: 33 | BU47: 40 | BV47: 38 | BW47: 0 | BX47: 31 | BY47: 38 | BZ47: 23 | CA47: invitations | CB47: mailing included | CC47: . | CD47: number | DK47: 25 | DL47: 25 | DM47: 25 invitations | DN47: posted | DO47: wedding invitations on different days. | DS47: 38 | DT47: 26 | DU47: 31 | DV47: 22 | DW47: 30 | DX47: 0 | DY47: 23 | DZ47: 75 | EA47: 3 | EB47: 25 | EC47: 0 | ED47: 25 | EE47: invitations | EF47: mailing included | EG47: posted | EH47: . | EI47: number | GE47: 9000 | GF47: =IF(INT(GE47/100)=GE47/100,CONCATENATE("$",GE47/100),CONCATENATE("$",GE47/100,0)) -> $90 | GG47: $90 | GH47: paid 50c for the stamps | GI47: on each letter. | GJ47: 5 | GN47: =INT(25*RAND()+25) -> 36 | GO47: 50 | GP47: letters | GR47: On each of 5 work days | GS47: posted | GT47: .
BH48: 178 | BI48: 178 invitations | BJ48: Eliza | BK48: her | BL48: Her | BM48: she | BN48: posted | BO48: birthday party invitations on different days. | BS48: 36 | BT48: 45 | BU48: 34 | BV48: 34 | BW48: 34 | BX48: 43 | BY48: 32 | BZ48: 35 | CA48: invitations | CB48: mailing included | CC48: . | CD48: number | DK48: 27 | DL48: 27 | DM48: 27 invitations | DN48: posted | DO48: birthday party invitations on different days. | DS48: 33 | DT48: 35 | DU48: 37 | DV48: 30 | DW48: 25 | DX48: 27 | DY48: 29 | DZ48: 111 | EA48: 4 | EB48: 27 | EC48: 3 | ED48: 24 | EE48: invitations | EF48: mailing included | EG48: posted | EH48: . | EI48: number | GE48: 2750 | GF48: =IF(INT(GE48/100)=GE48/100,CONCATENATE("$",GE48/100),CONCATENATE("$",GE48/100,0)) -> $27.50 | GG48: $27.50 | GH48: paid 50c for the stamps | GI48: on each letter. | GJ48: 5 | GN48: =INT(10*RAND()+5) -> 11 | GO48: 50 | GP48: letters | GR48: On each of 5 work days | GS48: posted | GT48: .
BJ49: Frieda | BK49: her | BL49: Her | BM49: she
BJ50: Gail | BK50: her | BL50: Her | BM50: she
BJ51: Helen | BK51: her | BL51: Her | BM51: she
BJ52: Isobel | BK52: her | BL52: Her | BM52: she
BJ53: Judy | BK53: her | BL53: Her | BM53: she
BJ54: Kim | BK54: her | BL54: Her | BM54: she
BJ55: Linda | BK55: her | BL55: Her | BM55: she
BJ56: Mary | BK56: her | BL56: Her | BM56: she
BJ57: Olivia | BK57: her | BL57: Her | BM57: she
BJ58: Paula | BK58: her | BL58: Her | BM58: she
BJ59: Ruth | BK59: her | BL59: Her | BM59: she
BJ60: Sally | BK60: her | BL60: Her | BM60: she
BJ61: Terri | BK61: her | BL61: Her | BM61: she
BJ62: Val | BK62: her | BL62: Her | BM62: she
BJ63: Wendy | BK63: her | BL63: Her | BM63: she
BJ64: Abbi | BK64: her | BL64: Her | BM64: she
BJ65: Lisa | BK65: her | BL65: Her | BM65: she
BJ66: Kerry | BK66: her | BL66: Her | BM66: she
BJ67: Jill | BK67: her | BL67: Her | BM67: she
BJ68: Jane | BK68: her | BL68: Her | BM68: she
BJ69: Janet | BK69: her | BL69: Her | BM69: she
BJ70: Vicki | BK70: her | BL70: Her | BM70: she
BJ71: Hollie | BK71: her | BL71: Her | BM71: she
BJ72: Jo | BK72: her | BL72: Her | BM72: she
BJ73: Jasmin | BK73: her | BL73: Her | BM73: she
BJ74: Kylie | BK74: her | BL74: Her | BM74: she
BJ75: Peta | BK75: her | BL75: Her | BM75: she
BJ76: Alana | BK76: her | BL76: Her | BM76: she
BJ77: Sue | BK77: her | BL77: Her | BM77: she
BJ78: Susan | BK78: her | BL78: Her | BM78: she
BJ79: Jenny | BK79: her | BL79: Her | BM79: she
BJ80: Hazel | BK80: her | BL80: Her | BM80: she
BJ81: Margo | BK81: her | BL81: Her | BM81: she
BJ82: Gabbi | BK82: her | BL82: Her | BM82: she
BJ83: Pat | BK83: her | BL83: Her | BM83: she
